BODY,BODY NAME,DATE,TRANSACTION NUMBER, AMOUNT ,SUPPLIER NAME,SUPPLIER ID,EXPENSE AREA,EXPENSE TYPE,EXPENSE CODE
http://statistics.data.gov.uk/id/local-authority/12UE,Huntingdonshire District Council,05/08/2010,63832,"3,450.00",Elephant & Castle Freehouse & Motel,CR401969,Accommodation For Homeless,Bed & Breakfast Payment,818
http://statistics.data.gov.uk/id/local-authority/12UE,Huntingdonshire District Council,12/08/2010,64517,"3,750.00",Elephant & Castle Freehouse & Motel,CR401969,Accommodation For Homeless,Bed & Breakfast Payment,818
http://statistics.data.gov.uk/id/local-authority/12UE,Huntingdonshire District Council,19/08/2010,64939,"3,150.00",Elephant & Castle Freehouse & Motel,CR401969,Accommodation For Homeless,Bed & Breakfast Payment,818
http://statistics.data.gov.uk/id/local-authority/12UE,Huntingdonshire District Council,26/08/2010,65320,"3,200.00",Elephant & Castle Freehouse & Motel,CR401969,Accommodation For Homeless,Bed & Breakfast Payment,818
http://statistics.data.gov.uk/id/local-authority/12UE,Huntingdonshire District Council,05/08/2010,64021,"2,563.53",King Street Housing Society,CR409301,Accommodation For Homeless,Management Charge,733
http://statistics.data.gov.uk/id/local-authority/12UE,Huntingdonshire District Council,05/08/2010,64022,684.7,King Street Housing Society,CR409301,Accommodation For Homeless,Management Charge,733
http://statistics.data.gov.uk/id/local-authority/12UE,Huntingdonshire District Council,19/08/2010,64552,112.78,Vodafone Limited,CR029120,Animal Welfare,Mobile Telephones & Radios,241
http://statistics.data.gov.uk/id/local-authority/12UE,Huntingdonshire District Council,12/08/2010,62031,"1,070.61",International Zoo Veterinary Group,CR477390,Animal Welfare,Vets,760
http://statistics.data.gov.uk/id/local-authority/12UE,Huntingdonshire District Council,19/08/2010,64786,"1,921.13",Pengelly And Mizen,CR411042,Animal Welfare,Vets,760
http://statistics.data.gov.uk/id/local-authority/12UE,Huntingdonshire District Council,19/08/2010,64552,19.31,Vodafone Limited,CR029120,Arts Development,Mobile Telephones & Radios,241
http://statistics.data.gov.uk/id/local-authority/12UE,Huntingdonshire District Council,19/08/2010,64271,172.15,T N T Post Midlands Ltd,CR479965,Arts Development,Postage,231
http://statistics.data.gov.uk/id/local-authority/12UE,Huntingdonshire District Council,26/08/2010,65212,"1,419.37",Opus International Consultants,CR479831,Building Control Applications,Consultants Other,711
http://statistics.data.gov.uk/id/local-authority/12UE,Huntingdonshire District Council,26/08/2010,64951,840.25,Swalec,CR407130,Bus Stations,Electricity,420
http://statistics.data.gov.uk/id/local-authority/12UE,Huntingdonshire District Council,26/08/2010,63766,229.13,Beebys Limited,CR415822,Bus Stations,Gen Building Mtce - Planned,304
http://statistics.data.gov.uk/id/local-authority/12UE,Huntingdonshire District Council,26/08/2010,63767,229.13,Beebys Limited,CR415822,Bus Stations,Gen Building Mtce - Planned,304
http://statistics.data.gov.uk/id/local-authority/12UE,Huntingdonshire District Council,26/08/2010,63766,23.5,Beebys Limited,CR415822,Bus Stations,Window Cleaning,442
http://statistics.data.gov.uk/id/local-authority/12UE,Huntingdonshire District Council,26/08/2010,63767,23.5,Beebys Limited,CR415822,Bus Stations,Window Cleaning,442
http://statistics.data.gov.uk/id/local-authority/12UE,Huntingdonshire District Council,19/08/2010,64552,7.02,Vodafone Limited,CR029120,Business & Enterprise Support,Mobile Telephones & Radios,241
http://statistics.data.gov.uk/id/local-authority/12UE,Huntingdonshire District Council,19/08/2010,64552,72.89,Vodafone Limited,CR029120,Business Analysis,Mobile Telephones & Radios,241
http://statistics.data.gov.uk/id/local-authority/12UE,Huntingdonshire District Council,19/08/2010,64552,77.76,Vodafone Limited,CR029120,C C T V,Mobile Telephones & Radios,241
http://statistics.data.gov.uk/id/local-authority/12UE,Huntingdonshire District Council,05/08/2010,62937,699.13,Fat Pipe Satcom Ltd,CR479423,C C T V,Transmission Lines Rental,767
http://statistics.data.gov.uk/id/local-authority/12UE,Huntingdonshire District Council,12/08/2010,62529,"23,933.27",Cambridgeshire County Council,CR477465,Call Centre,I C T Services,731
http://statistics.data.gov.uk/id/local-authority/12UE,Huntingdonshire District Council,26/08/2010,65043,"25,166.01",Cambridgeshire County Council,CR006678,Call Centre,I T Line Rental,248
http://statistics.data.gov.uk/id/local-authority/12UE,Huntingdonshire District Council,19/08/2010,64552,50.97,Vodafone Limited,CR029120,Call Centre,Mobile Telephones & Radios,241
http://statistics.data.gov.uk/id/local-authority/12UE,Huntingdonshire District Council,05/08/2010,63356,23.94,T N T Post Midlands Ltd,CR479965,Call Centre,Postage,231
http://statistics.data.gov.uk/id/local-authority/12UE,Huntingdonshire District Council,12/08/2010,63361,12.09,T N T Post Midlands Ltd,CR479965,Call Centre,Postage,231
http://statistics.data.gov.uk/id/local-authority/12UE,Huntingdonshire District Council,19/08/2010,64271,26.77,T N T Post Midlands Ltd,CR479965,Call Centre,Postage,231
http://statistics.data.gov.uk/id/local-authority/12UE,Huntingdonshire District Council,12/08/2010,62527,"14,981.25",Virgin Media Business,CR033120,Call Centre,Telephone Charges,240
http://statistics.data.gov.uk/id/local-authority/12UE,Huntingdonshire District Council,12/08/2010,62529,111.25,Cambridgeshire County Council,CR477465,Call Centre,Vending Materials,560
http://statistics.data.gov.uk/id/local-authority/12UE,Huntingdonshire District Council,19/08/2010,64502,"3,818.75",Adc East Anglia Limited,CR410308,Car Park Assets,Sitework,359
http://statistics.data.gov.uk/id/local-authority/12UE,Huntingdonshire District Council,26/08/2010,63797,522.88,B. S. Graves Electrical Ltd,CR000363,Car Park Assets,Sitework,359
http://statistics.data.gov.uk/id/local-authority/12UE,Huntingdonshire District Council,26/08/2010,63765,561.33,Mhb Services,CR417269,Car Park Assets,Sitework,359
http://statistics.data.gov.uk/id/local-authority/12UE,Huntingdonshire District Council,26/08/2010,64543,"3,630.87",Cale Briparc Ltd,CR401137,Car Park Management,Car Park Machines,522
http://statistics.data.gov.uk/id/local-authority/12UE,Huntingdonshire District Council,19/08/2010,64552,"1,324.12",Vodafone Limited,CR029120,Car Park Management,Mobile Telephones & Radios,241
http://statistics.data.gov.uk/id/local-authority/12UE,Huntingdonshire District Council,26/08/2010,65446,592.2,Cale Briparc Ltd,CR401137,Car Park Management,Software,206
http://statistics.data.gov.uk/id/local-authority/12UE,Huntingdonshire District Council,19/08/2010,497437,465.3,Huntingdon Town Council,CR002471,Car Park Management,Subcontractors,777
http://statistics.data.gov.uk/id/local-authority/12UE,Huntingdonshire District Council,19/08/2010,64552,57.2,Vodafone Limited,CR029120,Central & Democratic Serv Mu,Mobile Telephones & Radios,241
http://statistics.data.gov.uk/id/local-authority/12UE,Huntingdonshire District Council,19/08/2010,64509,609.83,Lga Conference Account,CR409238,Chief Executive & C O M T,Conferences,137
http://statistics.data.gov.uk/id/local-authority/12UE,Huntingdonshire District Council,19/08/2010,64552,93.23,Vodafone Limited,CR029120,Chief Executive & C O M T,Mobile Telephones & Radios,241
http://statistics.data.gov.uk/id/local-authority/12UE,Huntingdonshire District Council,05/08/2010,63785,469.07,Zurich Municipal,CR477397,Chief Executive & C O M T,Vehicle Insurance,610
http://statistics.data.gov.uk/id/local-authority/12UE,Huntingdonshire District Council,19/08/2010,64510,609.83,Lga Conference Account,CR409238,Commerce & Tech Director Mus,Conferences,137
http://statistics.data.gov.uk/id/local-authority/12UE,Huntingdonshire District Council,19/08/2010,64552,22.48,Vodafone Limited,CR029120,Commerce & Tech Director Mus,Mobile Telephones & Radios,241
http://statistics.data.gov.uk/id/local-authority/12UE,Huntingdonshire District Council,05/08/2010,63785,469.08,Zurich Municipal,CR477397,Commerce & Tech Director Mus,Vehicle Insurance,610
http://statistics.data.gov.uk/id/local-authority/12UE,Huntingdonshire District Council,05/08/2010,62513,350,Moorside Pools & Leisure Products,CR411501,Community Projects,Building Cleaning Internal,440
http://statistics.data.gov.uk/id/local-authority/12UE,Huntingdonshire District Council,19/08/2010,64552,69.78,Vodafone Limited,CR029120,Community Safety,Mobile Telephones & Radios,241
http://statistics.data.gov.uk/id/local-authority/12UE,Huntingdonshire District Council,19/08/2010,64552,292.57,Vodafone Limited,CR029120,Community Services M Us,Mobile Telephones & Radios,241
http://statistics.data.gov.uk/id/local-authority/12UE,Huntingdonshire District Council,12/08/2010,497409,600,Oundle School,CR416288,Community Services M Us,Training - Operational,131
http://statistics.data.gov.uk/id/local-authority/12UE,Huntingdonshire District Council,12/08/2010,64298,"3,120.00",Sts Leisure Group,CR415607,Community Services M Us,Training - Operational,131
http://statistics.data.gov.uk/id/local-authority/12UE,Huntingdonshire District Council,05/08/2010,63785,938.15,Zurich Municipal,CR477397,Community Services M Us,Vehicle Insurance,610
http://statistics.data.gov.uk/id/local-authority/12UE,Huntingdonshire District Council,05/08/2010,64000,509.95,Payne Security Ltd,CR406896,Concessionary Fares,Tickets,227
http://statistics.data.gov.uk/id/local-authority/12UE,Huntingdonshire District Council,19/08/2010,497657,"2,000.00",REDACTED PERSONAL DATA,CR480814,Conservation & Listed Build,Grants (Paid Out),800
http://statistics.data.gov.uk/id/local-authority/12UE,Huntingdonshire District Council,19/08/2010,64552,3.08,Vodafone Limited,CR029120,Corporate Committees,Mobile Telephones & Radios,241
http://statistics.data.gov.uk/id/local-authority/12UE,Huntingdonshire District Council,05/08/2010,63316,625,Wayside & Wildlife,CR409567,Countryside Management,Consultants Other,711
http://statistics.data.gov.uk/id/local-authority/12UE,Huntingdonshire District Council,19/08/2010,64552,232.07,Vodafone Limited,CR029120,Countryside Management,Mobile Telephones & Radios,241
http://statistics.data.gov.uk/id/local-authority/12UE,Huntingdonshire District Council,19/08/2010,64567,180.42,Shell Uk Ltd,CR028192,Countryside Management,Petrol,614
http://statistics.data.gov.uk/id/local-authority/12UE,Huntingdonshire District Council,05/08/2010,63782,"1,019.03",Jardine Lloyd Thompson,CR480345,Countryside Management,Vehicle Insurance,610
http://statistics.data.gov.uk/id/local-authority/12UE,Huntingdonshire District Council,05/08/2010,62513,350,Moorside Pools & Leisure Products,CR411501,Customer Service,Building Cleaning Internal,440
http://statistics.data.gov.uk/id/local-authority/12UE,Huntingdonshire District Council,26/08/2010,65259,510.01,G4s Cashservices Uk Ltd,CR407133,Customer Service Centres,Cash Collection,702
http://statistics.data.gov.uk/id/local-authority/12UE,Huntingdonshire District Council,05/08/2010,63781,"1,567.57",Jardine Lloyd Thompson,CR480345,Customer Service Centres,Ins (Service Related),260
http://statistics.data.gov.uk/id/local-authority/12UE,Huntingdonshire District Council,19/08/2010,64552,77.27,Vodafone Limited,CR029120,Customer Service Centres,Mobile Telephones & Radios,241
http://statistics.data.gov.uk/id/local-authority/12UE,Huntingdonshire District Council,05/08/2010,62115,3.68,Virgin Media Business,CR033120,Customer Service Centres,Telephone Charges,240
http://statistics.data.gov.uk/id/local-authority/12UE,Huntingdonshire District Council,05/08/2010,63997,"7,939.25",Barker Storey Matthews,CR400788,Dc Application Processing,Consultants Other,711
http://statistics.data.gov.uk/id/local-authority/12UE,Huntingdonshire District Council,12/08/2010,63801,"1,353.18",Ecocleen Services Limited,CR406985,Depots,Building Cleaning Internal,440
http://statistics.data.gov.uk/id/local-authority/12UE,Huntingdonshire District Council,19/08/2010,64534,"4,778.54",Swalec,CR407130,Depots,Electricity,420
http://statistics.data.gov.uk/id/local-authority/12UE,Huntingdonshire District Council,12/08/2010,63073,507.61,Edf Energy Customer Field Services,CR477611,Depots,Equipment Hire,507
http://statistics.data.gov.uk/id/local-authority/12UE,Huntingdonshire District Council,05/08/2010,62631,"1,263.85",E-On Energy,CR416430,Depots,Gas,421
http://statistics.data.gov.uk/id/local-authority/12UE,Huntingdonshire District Council,05/08/2010,62414,642.78,Anglia Electrical Services Ltd,CR477493,Depots,Gen Building Mtce - Planned,304
http://statistics.data.gov.uk/id/local-authority/12UE,Huntingdonshire District Council,05/08/2010,62415,"2,143.31",Anglia Electrical Services Ltd,CR477493,Depots,Gen Building Mtce - Planned,304
http://statistics.data.gov.uk/id/local-authority/12UE,Huntingdonshire District Council,12/08/2010,62839,"3,055.00",Anglia Electrical Services Ltd,CR477493,Depots,Gen Building Mtce - Planned,304
http://statistics.data.gov.uk/id/local-authority/12UE,Huntingdonshire District Council,05/08/2010,63500,675.63,Cambridge Door Services,CR415341,Depots,Gen Building Mtce - Planned,304
http://statistics.data.gov.uk/id/local-authority/12UE,Huntingdonshire District Council,26/08/2010,64260,898.88,Universal Safety Systems Ltd,CR478208,Depots,Gen Building Mtce - Planned,304
http://statistics.data.gov.uk/id/local-authority/12UE,Huntingdonshire District Council,05/08/2010,63500,123.38,Cambridge Door Services,CR415341,Depots,Gen Building Mtce - Responsive,303
http://statistics.data.gov.uk/id/local-authority/12UE,Huntingdonshire District Council,19/08/2010,64552,151.81,Vodafone Limited,CR029120,Development Team,Mobile Telephones & Radios,241
http://statistics.data.gov.uk/id/local-authority/12UE,Huntingdonshire District Council,05/08/2010,63123,881.25,Socitm,CR403291,Development Team,Software,206
http://statistics.data.gov.uk/id/local-authority/12UE,Huntingdonshire District Council,24/08/2010,497827,"1,762.50",Miss Saira Kabir Sheikh,CR409440,Dm Enforcement,Legal Fees And Consultancy,729
http://statistics.data.gov.uk/id/local-authority/12UE,Huntingdonshire District Council,12/08/2010,63354,"2,825.29",Moore Paragon Uk Limited,CR030863,Document Centre,Equipment Maintenance,511
http://statistics.data.gov.uk/id/local-authority/12UE,Huntingdonshire District Council,05/08/2010,63359,870.99,Neopost,CR028326,Document Centre,Equipment Maintenance,511
http://statistics.data.gov.uk/id/local-authority/12UE,Huntingdonshire District Council,26/08/2010,64269,951.74,Oce Uk Limited,CR409013,Document Centre,Equipment Maintenance,511
http://statistics.data.gov.uk/id/local-authority/12UE,Huntingdonshire District Council,19/08/2010,64272,"1,845.71",Ricoh Uk Ltd,CR477632,Document Centre,Equipment Maintenance,511
http://statistics.data.gov.uk/id/local-authority/12UE,Huntingdonshire District Council,19/08/2010,64552,14.9,Vodafone Limited,CR029120,Document Centre,Mobile Telephones & Radios,241
http://statistics.data.gov.uk/id/local-authority/12UE,Huntingdonshire District Council,12/08/2010,63369,552.07,Antalis Ltd,CR479468,Document Centre,Paper,562
http://statistics.data.gov.uk/id/local-authority/12UE,Huntingdonshire District Council,05/08/2010,496876,605.32,Talk Paper Ltd,CR410405,Document Centre,Paper,562
http://statistics.data.gov.uk/id/local-authority/12UE,Huntingdonshire District Council,05/08/2010,63355,"1,227.13",Royal Mail,CR027083,Document Centre,Postage,231
http://statistics.data.gov.uk/id/local-authority/12UE,Huntingdonshire District Council,19/08/2010,63362,32.92,Royal Mail,CR027083,Document Centre,Postage,231
http://statistics.data.gov.uk/id/local-authority/12UE,Huntingdonshire District Council,19/08/2010,63778,"1,156.21",Royal Mail,CR027083,Document Centre,Postage,231
http://statistics.data.gov.uk/id/local-authority/12UE,Huntingdonshire District Council,05/08/2010,63356,661.85,T N T Post Midlands Ltd,CR479965,Document Centre,Postage,231
http://statistics.data.gov.uk/id/local-authority/12UE,Huntingdonshire District Council,05/08/2010,63357,899.35,T N T Post Midlands Ltd,CR479965,Document Centre,Postage,231
http://statistics.data.gov.uk/id/local-authority/12UE,Huntingdonshire District Council,12/08/2010,63361,822.42,T N T Post Midlands Ltd,CR479965,Document Centre,Postage,231
http://statistics.data.gov.uk/id/local-authority/12UE,Huntingdonshire District Council,26/08/2010,64267,988,T N T Post Midlands Ltd,CR479965,Document Centre,Postage,231
http://statistics.data.gov.uk/id/local-authority/12UE,Huntingdonshire District Council,19/08/2010,64271,942.82,T N T Post Midlands Ltd,CR479965,Document Centre,Postage,231
http://statistics.data.gov.uk/id/local-authority/12UE,Huntingdonshire District Council,26/08/2010,64265,"4,862.21",West Country Paper,CR400581,Document Centre,Subcontractors,777
http://statistics.data.gov.uk/id/local-authority/12UE,Huntingdonshire District Council,05/08/2010,62917,"4,999.41",Qubic Recruitment Solutions,CR416827,Domestic Refuse,Hired Staff,100
http://statistics.data.gov.uk/id/local-authority/12UE,Huntingdonshire District Council,05/08/2010,63408,"4,375.82",Qubic Recruitment Solutions,CR416827,Domestic Refuse,Hired Staff,100
http://statistics.data.gov.uk/id/local-authority/12UE,Huntingdonshire District Council,12/08/2010,63565,"1,317.03",Qubic Recruitment Solutions,CR416827,Domestic Refuse,Hired Staff,100
http://statistics.data.gov.uk/id/local-authority/12UE,Huntingdonshire District Council,12/08/2010,63566,"2,779.23",Qubic Recruitment Solutions,CR416827,Domestic Refuse,Hired Staff,100
http://statistics.data.gov.uk/id/local-authority/12UE,Huntingdonshire District Council,19/08/2010,64520,"2,854.49",Qubic Recruitment Solutions,CR416827,Domestic Refuse,Hired Staff,100
http://statistics.data.gov.uk/id/local-authority/12UE,Huntingdonshire District Council,19/08/2010,64521,"1,908.38",Qubic Recruitment Solutions,CR416827,Domestic Refuse,Hired Staff,100
http://statistics.data.gov.uk/id/local-authority/12UE,Huntingdonshire District Council,26/08/2010,64569,"2,784.59",Qubic Recruitment Solutions,CR416827,Domestic Refuse,Hired Staff,100
http://statistics.data.gov.uk/id/local-authority/12UE,Huntingdonshire District Council,26/08/2010,64572,"1,188.02",Qubic Recruitment Solutions,CR416827,Domestic Refuse,Hired Staff,100
http://statistics.data.gov.uk/id/local-authority/12UE,Huntingdonshire District Council,26/08/2010,64885,"4,146.30",Bandvulc Tyres Ltd,CR406810,Domestic Refuse,Tyres,630
http://statistics.data.gov.uk/id/local-authority/12UE,Huntingdonshire District Council,19/08/2010,496908,616.88,Bibby Factors Leicester Ltd,CR480417,Domestic Refuse,Vehicle Hire,607
http://statistics.data.gov.uk/id/local-authority/12UE,Huntingdonshire District Council,19/08/2010,496909,616.88,Bibby Factors Leicester Ltd,CR480417,Domestic Refuse,Vehicle Hire,607
http://statistics.data.gov.uk/id/local-authority/12UE,Huntingdonshire District Council,19/08/2010,496910,616.88,Bibby Factors Leicester Ltd,CR480417,Domestic Refuse,Vehicle Hire,607
http://statistics.data.gov.uk/id/local-authority/12UE,Huntingdonshire District Council,19/08/2010,63957,804.88,G E Capital Tls Ltd,CR411508,Domestic Refuse,Vehicle Hire,607
http://statistics.data.gov.uk/id/local-authority/12UE,Huntingdonshire District Council,05/08/2010,60926,-515.85,Cummins Uk,CR480395,Domestic Refuse,Vehicle Maintenance,619
http://statistics.data.gov.uk/id/local-authority/12UE,Huntingdonshire District Council,05/08/2010,63077,"1,833.66",Cummins Uk,CR480395,Domestic Refuse,Vehicle Maintenance,619
http://statistics.data.gov.uk/id/local-authority/12UE,Huntingdonshire District Council,05/08/2010,63868,726.09,Dennis Eagle Ltd,CR000200,Domestic Refuse,Vehicle Maintenance,619
http://statistics.data.gov.uk/id/local-authority/12UE,Huntingdonshire District Council,19/08/2010,64250,853.53,Dennis Eagle Ltd,CR000200,Domestic Refuse,Vehicle Maintenance,619
http://statistics.data.gov.uk/id/local-authority/12UE,Huntingdonshire District Council,12/08/2010,63430,766.19,M & N Vehicle Services,CR480661,Domestic Refuse,Vehicle Maintenance,619
http://statistics.data.gov.uk/id/local-authority/12UE,Huntingdonshire District Council,26/08/2010,64253,"1,044.67",M & N Vehicle Services,CR480661,Domestic Refuse,Vehicle Maintenance,619
http://statistics.data.gov.uk/id/local-authority/12UE,Huntingdonshire District Council,26/08/2010,64529,662.26,Terberg Matec Uk Ltd,CR402183,Domestic Refuse,Vehicle Maintenance,619
http://statistics.data.gov.uk/id/local-authority/12UE,Huntingdonshire District Council,12/08/2010,63430,120,M & N Vehicle Services,CR480661,Domestic Refuse,Vehicle Mot,622
http://statistics.data.gov.uk/id/local-authority/12UE,Huntingdonshire District Council,26/08/2010,64253,120,M & N Vehicle Services,CR480661,Domestic Refuse,Vehicle Mot,622
http://statistics.data.gov.uk/id/local-authority/12UE,Huntingdonshire District Council,05/08/2010,63859,"1,039.88",Dennis Eagle Ltd,CR000200,Domestic Refuse,Vehicle Parts,625
http://statistics.data.gov.uk/id/local-authority/12UE,Huntingdonshire District Council,12/08/2010,63869,"1,039.88",Dennis Eagle Ltd,CR000200,Domestic Refuse,Vehicle Parts,625
http://statistics.data.gov.uk/id/local-authority/12UE,Huntingdonshire District Council,19/08/2010,64552,74.15,Vodafone Limited,CR029120,Emergency Planning,Mobile Telephones & Radios,241
http://statistics.data.gov.uk/id/local-authority/12UE,Huntingdonshire District Council,12/08/2010,496155,"1,500.00",Cambridgeshire County Council,CR006678,Energy Efficiency,Consultants Other,711
http://statistics.data.gov.uk/id/local-authority/12UE,Huntingdonshire District Council,26/08/2010,64052,"3,114.93",Marney Hall Consultancy Limited,CR480342,Energy Efficiency,Consultants Other,711
http://statistics.data.gov.uk/id/local-authority/12UE,Huntingdonshire District Council,19/08/2010,64552,7.81,Vodafone Limited,CR029120,Energy Efficiency,Mobile Telephones & Radios,241
http://statistics.data.gov.uk/id/local-authority/12UE,Huntingdonshire District Council,12/08/2010,63033,"2,232.50",Marney Hall Consultancy Limited,CR480342,Energy Efficiency,Sitework,359
http://statistics.data.gov.uk/id/local-authority/12UE,Huntingdonshire District Council,26/08/2010,65263,785.5,Nea,CR028440,Energy Efficiency,Training - Operational,131
http://statistics.data.gov.uk/id/local-authority/12UE,Huntingdonshire District Council,26/08/2010,65263,170,Nea,CR028440,Energy Efficiency,Training - Other,136
http://statistics.data.gov.uk/id/local-authority/12UE,Huntingdonshire District Council,19/08/2010,64552,606.87,Vodafone Limited,CR029120,Engineering & Arch M Us,Mobile Telephones & Radios,241
http://statistics.data.gov.uk/id/local-authority/12UE,Huntingdonshire District Council,19/08/2010,63921,155.06,Dell Computer Corporation,CR408320,Engineering & Arch M Us,Other I T Hardware,203
http://statistics.data.gov.uk/id/local-authority/12UE,Huntingdonshire District Council,05/08/2010,62421,693.25,Institute Of Lighting Engineers,CR477841,Engineering & Arch M Us,Training - Professional,130
http://statistics.data.gov.uk/id/local-authority/12UE,Huntingdonshire District Council,05/08/2010,64056,576.9,Ats Anglia Ltd,CR132657,Engineering & Arch M Us,Tyres,630
http://statistics.data.gov.uk/id/local-authority/12UE,Huntingdonshire District Council,05/08/2010,63785,469.07,Zurich Municipal,CR477397,Engineering & Arch M Us,Vehicle Insurance,610
http://statistics.data.gov.uk/id/local-authority/12UE,Huntingdonshire District Council,19/08/2010,64552,94.45,Vodafone Limited,CR029120,Env & Comm Services Director,Mobile Telephones & Radios,241
http://statistics.data.gov.uk/id/local-authority/12UE,Huntingdonshire District Council,05/08/2010,63785,469.11,Zurich Municipal,CR477397,Env & Comm Services Director,Vehicle Insurance,610
http://statistics.data.gov.uk/id/local-authority/12UE,Huntingdonshire District Council,19/08/2010,64552,"1,272.00",Vodafone Limited,CR029120,Environmental Health M Us,Mobile Telephones & Radios,241
http://statistics.data.gov.uk/id/local-authority/12UE,Huntingdonshire District Council,19/08/2010,63921,56.39,Dell Computer Corporation,CR408320,Environmental Health M Us,Other I T Hardware,203
http://statistics.data.gov.uk/id/local-authority/12UE,Huntingdonshire District Council,19/08/2010,64784,724.5,Esri Uk,CR405125,Environmental Health M Us,Training - Operational,131
http://statistics.data.gov.uk/id/local-authority/12UE,Huntingdonshire District Council,03/08/2010,63884,"7,258.56",Freeth Cartwright Llp,CR480787,Estates Properties Capital,Legal Fees And Consultancy,729
http://statistics.data.gov.uk/id/local-authority/12UE,Huntingdonshire District Council,19/08/2010,64552,16.97,Vodafone Limited,CR029120,Executive Director,Mobile Telephones & Radios,241
http://statistics.data.gov.uk/id/local-authority/12UE,Huntingdonshire District Council,05/08/2010,63785,469.07,Zurich Municipal,CR477397,Executive Director,Vehicle Insurance,610
http://statistics.data.gov.uk/id/local-authority/12UE,Huntingdonshire District Council,12/08/2010,64054,"2,026.11",Uk Water Conservation,CR119758,Facilities Mgt,Consultants Other,711
http://statistics.data.gov.uk/id/local-authority/12UE,Huntingdonshire District Council,19/08/2010,64552,9.42,Vodafone Limited,CR029120,Facilities Mgt,Mobile Telephones & Radios,241
http://statistics.data.gov.uk/id/local-authority/12UE,Huntingdonshire District Council,12/08/2010,59144,"1,128.00",Reed Business Information Ltd,CR401020,Financial Services,Advertising/Promoting Services,255
http://statistics.data.gov.uk/id/local-authority/12UE,Huntingdonshire District Council,05/08/2010,63786,"-5,250.00",Zurich Municipal,CR477397,Financial Services,Insurance Employers,162
http://statistics.data.gov.uk/id/local-authority/12UE,Huntingdonshire District Council,26/08/2010,65443,735.98,Regal Credit Consultants Ltd,CR415027,Financial Services Mus,Bailiffs,703
http://statistics.data.gov.uk/id/local-authority/12UE,Huntingdonshire District Council,12/08/2010,497416,"2,095.00",North Kesteven District Council,CR480804,Financial Services Mus,Corporate Subscriptions,754
http://statistics.data.gov.uk/id/local-authority/12UE,Huntingdonshire District Council,12/08/2010,63902,"2,095.00",South Kesteven District Council,CR406169,Financial Services Mus,Corporate Subscriptions,754
http://statistics.data.gov.uk/id/local-authority/12UE,Huntingdonshire District Council,12/08/2010,64748,"-2,095.00",South Kesteven District Council,CR406169,Financial Services Mus,Corporate Subscriptions,754
http://statistics.data.gov.uk/id/local-authority/12UE,Huntingdonshire District Council,19/08/2010,64552,12.63,Vodafone Limited,CR029120,Financial Services Mus,Mobile Telephones & Radios,241
http://statistics.data.gov.uk/id/local-authority/12UE,Huntingdonshire District Council,05/08/2010,63785,469.07,Zurich Municipal,CR477397,Financial Services Mus,Vehicle Insurance,610
http://statistics.data.gov.uk/id/local-authority/12UE,Huntingdonshire District Council,26/08/2010,64065,96.24,Days Contract Hire,CR417030,Fleet Management,Service Charges,412
http://statistics.data.gov.uk/id/local-authority/12UE,Huntingdonshire District Council,26/08/2010,64065,965.28,Days Contract Hire,CR417030,Fleet Management,Vehicle Finance Leases,602
http://statistics.data.gov.uk/id/local-authority/12UE,Huntingdonshire District Council,05/08/2010,63785,"1,876.30",Zurich Municipal,CR477397,Fleet Management,Vehicle Insurance,610
http://statistics.data.gov.uk/id/local-authority/12UE,Huntingdonshire District Council,05/08/2010,63833,"5,953.11",Computershare Vouchers Ltd,CR412205,General Creditors,Deductions Paid To Third Party,26
http://statistics.data.gov.uk/id/local-authority/12UE,Huntingdonshire District Council,12/08/2010,64325,"1,044.02",Euramka Promotions Ltd,CR001864,Grounds Maintenance (Combined),Diesel,615
http://statistics.data.gov.uk/id/local-authority/12UE,Huntingdonshire District Council,12/08/2010,63887,910.63,Lattenbury Services,CR406847,Grounds Maintenance (Combined),"Fences, Walls, Gates",356
http://statistics.data.gov.uk/id/local-authority/12UE,Huntingdonshire District Council,12/08/2010,63888,842.48,Lattenbury Services,CR406847,Grounds Maintenance (Combined),"Fences, Walls, Gates",356
http://statistics.data.gov.uk/id/local-authority/12UE,Huntingdonshire District Council,05/08/2010,62912,743.78,Qubic Recruitment Solutions,CR416827,Grounds Maintenance (Combined),Hired Staff,100
http://statistics.data.gov.uk/id/local-authority/12UE,Huntingdonshire District Council,05/08/2010,63406,687.38,Qubic Recruitment Solutions,CR416827,Grounds Maintenance (Combined),Hired Staff,100
http://statistics.data.gov.uk/id/local-authority/12UE,Huntingdonshire District Council,12/08/2010,63901,"1,500.00",Zurich Municipal,CR003638,Grounds Maintenance (Combined),Insurance Excess,797
http://statistics.data.gov.uk/id/local-authority/12UE,Huntingdonshire District Council,12/08/2010,64325,129.47,Euramka Promotions Ltd,CR001864,Grounds Maintenance (Combined),Petrol,614
http://statistics.data.gov.uk/id/local-authority/12UE,Huntingdonshire District Council,19/08/2010,64567,420.49,Shell Uk Ltd,CR028192,Grounds Maintenance (Combined),Petrol,614
http://statistics.data.gov.uk/id/local-authority/12UE,Huntingdonshire District Council,26/08/2010,64504,35.25,D & H Sign & Display Services,CR030353,Grounds Maintenance (Combined),Vehicle Logo,627
http://statistics.data.gov.uk/id/local-authority/12UE,Huntingdonshire District Council,05/08/2010,63333,686.4,Fleet Services Uk Ltd,CR480744,Grounds Maintenance (Combined),Vehicle Refurbishment,624
http://statistics.data.gov.uk/id/local-authority/12UE,Huntingdonshire District Council,12/08/2010,63429,686.4,Fleet Services Uk Ltd,CR480744,Grounds Maintenance (Combined),Vehicle Refurbishment,624
http://statistics.data.gov.uk/id/local-authority/12UE,Huntingdonshire District Council,19/08/2010,63922,686.4,Fleet Services Uk Ltd,CR480744,Grounds Maintenance (Combined),Vehicle Refurbishment,624
http://statistics.data.gov.uk/id/local-authority/12UE,Huntingdonshire District Council,26/08/2010,64249,752.2,Fleet Services Uk Ltd,CR480744,Grounds Maintenance (Combined),Vehicle Refurbishment,624
http://statistics.data.gov.uk/id/local-authority/12UE,Huntingdonshire District Council,26/08/2010,64886,754.35,Huntingdon Recycling Ltd,CR408322,Grounds Maintenance (Combined),Waste Disposal,763
http://statistics.data.gov.uk/id/local-authority/12UE,Huntingdonshire District Council,19/08/2010,64552,72.64,Vodafone Limited,CR029120,Head Of Imd,Mobile Telephones & Radios,241
http://statistics.data.gov.uk/id/local-authority/12UE,Huntingdonshire District Council,19/08/2010,64556,"1,210.25",Qa Limited,CR479791,Head Of Imd,Training - I T,134
http://statistics.data.gov.uk/id/local-authority/12UE,Huntingdonshire District Council,12/08/2010,62966,687.37,1st Choice Recruitment,CR406132,Helpdesk,Hired Staff,100
http://statistics.data.gov.uk/id/local-authority/12UE,Huntingdonshire District Council,05/08/2010,62993,669.75,1st Choice Recruitment,CR406132,Helpdesk,Hired Staff,100
http://statistics.data.gov.uk/id/local-authority/12UE,Huntingdonshire District Council,05/08/2010,62994,504.31,1st Choice Recruitment,CR406132,Helpdesk,Hired Staff,100
http://statistics.data.gov.uk/id/local-authority/12UE,Huntingdonshire District Council,12/08/2010,62996,504.31,1st Choice Recruitment,CR406132,Helpdesk,Hired Staff,100
http://statistics.data.gov.uk/id/local-authority/12UE,Huntingdonshire District Council,19/08/2010,63468,537.56,1st Choice Recruitment,CR406132,Helpdesk,Hired Staff,100
http://statistics.data.gov.uk/id/local-authority/12UE,Huntingdonshire District Council,19/08/2010,63470,511.12,1st Choice Recruitment,CR406132,Helpdesk,Hired Staff,100
http://statistics.data.gov.uk/id/local-authority/12UE,Huntingdonshire District Council,26/08/2010,64061,540.38,1st Choice Recruitment,CR406132,Helpdesk,Hired Staff,100
http://statistics.data.gov.uk/id/local-authority/12UE,Huntingdonshire District Council,12/08/2010,64419,504.31,1st Choice Recruitment,CR406132,Helpdesk,Hired Staff,100
http://statistics.data.gov.uk/id/local-authority/12UE,Huntingdonshire District Council,19/08/2010,64552,339.41,Vodafone Limited,CR029120,Helpdesk,Mobile Telephones & Radios,241
http://statistics.data.gov.uk/id/local-authority/12UE,Huntingdonshire District Council,05/08/2010,63344,505.26,King Bros,CR411339,Hinchingbrooke Country Park,Catering Materials,559
http://statistics.data.gov.uk/id/local-authority/12UE,Huntingdonshire District Council,19/08/2010,64361,542.01,King Bros,CR411339,Hinchingbrooke Country Park,Catering Materials,559
http://statistics.data.gov.uk/id/local-authority/12UE,Huntingdonshire District Council,19/08/2010,64362,542.98,King Bros,CR411339,Hinchingbrooke Country Park,Catering Materials,559
http://statistics.data.gov.uk/id/local-authority/12UE,Huntingdonshire District Council,26/08/2010,65461,519.28,Swalec,CR407130,Hinchingbrooke Country Park,Electricity,420
http://statistics.data.gov.uk/id/local-authority/12UE,Huntingdonshire District Council,05/08/2010,63398,703.69,Caterfix Ltd,CR480775,Hinchingbrooke Country Park,Equipment Maintenance,511
http://statistics.data.gov.uk/id/local-authority/12UE,Huntingdonshire District Council,05/08/2010,63343,"1,445.25",Coral Design Management,CR029621,Hinchingbrooke Country Park,Printing (External),220
http://statistics.data.gov.uk/id/local-authority/12UE,Huntingdonshire District Council,23/08/2010,64829,"1,620.00",Adam Groundworks,CR478140,Hinchingbrooke Country Park,Subcontractors,777
http://statistics.data.gov.uk/id/local-authority/12UE,Huntingdonshire District Council,16/08/2010,63962,"1,620.00",Adams Building Services Uk Ltd,CR415018,Hinchingbrooke Country Park,Subcontractors,777
http://statistics.data.gov.uk/id/local-authority/12UE,Huntingdonshire District Council,16/08/2010,64815,"-1,620.00",Adams Building Services Uk Ltd,CR415018,Hinchingbrooke Country Park,Subcontractors,777
http://statistics.data.gov.uk/id/local-authority/12UE,Huntingdonshire District Council,19/08/2010,64552,25.92,Vodafone Limited,CR029120,Home Improvement Agency,Mobile Telephones & Radios,241
http://statistics.data.gov.uk/id/local-authority/12UE,Huntingdonshire District Council,26/08/2010,65321,540.5,Alexanders,CR415843,Homelessness Management,Removal/Storage,750
http://statistics.data.gov.uk/id/local-authority/12UE,Huntingdonshire District Council,05/08/2010,63794,560,Alexanders Self Storage,CR478267,Homelessness Management,Removal/Storage,750
http://statistics.data.gov.uk/id/local-authority/12UE,Huntingdonshire District Council,19/08/2010,64552,106.7,Vodafone Limited,CR029120,Housing Management Units,Mobile Telephones & Radios,241
http://statistics.data.gov.uk/id/local-authority/12UE,Huntingdonshire District Council,19/08/2010,65041,"1,042.81",Jordans  Ltd,CR002076,Housing Management Units,Training - Operational,131
http://statistics.data.gov.uk/id/local-authority/12UE,Huntingdonshire District Council,05/08/2010,63785,469.07,Zurich Municipal,CR477397,Housing Management Units,Vehicle Insurance,610
http://statistics.data.gov.uk/id/local-authority/12UE,Huntingdonshire District Council,05/08/2010,62601,"6,702.71",Hinchingbrooke Healthcare Nhs,CR003003,Human Resources,Medical Fees,734
http://statistics.data.gov.uk/id/local-authority/12UE,Huntingdonshire District Council,19/08/2010,64552,119.9,Vodafone Limited,CR029120,Human Resources,Mobile Telephones & Radios,241
http://statistics.data.gov.uk/id/local-authority/12UE,Huntingdonshire District Council,19/08/2010,64396,587.32,Northgate Arinso,CR028689,Human Resources,Software,206
http://statistics.data.gov.uk/id/local-authority/12UE,Huntingdonshire District Council,05/08/2010,63968,312.6,A & S Fenner,CR000092,Improvement Grants,Home Improvement Agency Fees,724
http://statistics.data.gov.uk/id/local-authority/12UE,Huntingdonshire District Council,05/08/2010,63969,345,A & S Fenner,CR000092,Improvement Grants,Home Improvement Agency Fees,724
http://statistics.data.gov.uk/id/local-authority/12UE,Huntingdonshire District Council,05/08/2010,63970,285,A & S Fenner,CR000092,Improvement Grants,Home Improvement Agency Fees,724
http://statistics.data.gov.uk/id/local-authority/12UE,Huntingdonshire District Council,12/08/2010,63971,280,A & S Fenner,CR000092,Improvement Grants,Home Improvement Agency Fees,724
http://statistics.data.gov.uk/id/local-authority/12UE,Huntingdonshire District Council,05/08/2010,63972,430,A & S Fenner,CR000092,Improvement Grants,Home Improvement Agency Fees,724
http://statistics.data.gov.uk/id/local-authority/12UE,Huntingdonshire District Council,05/08/2010,64053,53.5,A & S Fenner,CR000092,Improvement Grants,Home Improvement Agency Fees,724
http://statistics.data.gov.uk/id/local-authority/12UE,Huntingdonshire District Council,12/08/2010,64539,285,A & S Fenner,CR000092,Improvement Grants,Home Improvement Agency Fees,724
http://statistics.data.gov.uk/id/local-authority/12UE,Huntingdonshire District Council,26/08/2010,65317,333.2,A & S Fenner,CR000092,Improvement Grants,Home Improvement Agency Fees,724
http://statistics.data.gov.uk/id/local-authority/12UE,Huntingdonshire District Council,26/08/2010,65318,324,A & S Fenner,CR000092,Improvement Grants,Home Improvement Agency Fees,724
http://statistics.data.gov.uk/id/local-authority/12UE,Huntingdonshire District Council,26/08/2010,65434,100,A & S Fenner,CR000092,Improvement Grants,Home Improvement Agency Fees,724
http://statistics.data.gov.uk/id/local-authority/12UE,Huntingdonshire District Council,26/08/2010,65435,120,A & S Fenner,CR000092,Improvement Grants,Home Improvement Agency Fees,724
http://statistics.data.gov.uk/id/local-authority/12UE,Huntingdonshire District Council,26/08/2010,65436,392,A & S Fenner,CR000092,Improvement Grants,Home Improvement Agency Fees,724
http://statistics.data.gov.uk/id/local-authority/12UE,Huntingdonshire District Council,05/08/2010,63478,690,B P Morse,CR030128,Improvement Grants,Home Improvement Agency Fees,724
http://statistics.data.gov.uk/id/local-authority/12UE,Huntingdonshire District Council,05/08/2010,63967,276,B P Morse,CR030128,Improvement Grants,Home Improvement Agency Fees,724
http://statistics.data.gov.uk/id/local-authority/12UE,Huntingdonshire District Council,26/08/2010,65316,960,B P Morse,CR030128,Improvement Grants,Home Improvement Agency Fees,724
http://statistics.data.gov.uk/id/local-authority/12UE,Huntingdonshire District Council,26/08/2010,65313,208.2,Bri Col Plumbing & Heating,CR033504,Improvement Grants,Home Improvement Agency Fees,724
http://statistics.data.gov.uk/id/local-authority/12UE,Huntingdonshire District Council,26/08/2010,65312,287.25,Bsg Property Services Ltd,CR089905,Improvement Grants,Home Improvement Agency Fees,724
http://statistics.data.gov.uk/id/local-authority/12UE,Huntingdonshire District Council,26/08/2010,60245,392.5,Mws General Builders,CR403808,Improvement Grants,Home Improvement Agency Fees,724
http://statistics.data.gov.uk/id/local-authority/12UE,Huntingdonshire District Council,05/08/2010,59436,351.5,Priory Buildings (St Neots) Ltd,CR410900,Improvement Grants,Home Improvement Agency Fees,724
http://statistics.data.gov.uk/id/local-authority/12UE,Huntingdonshire District Council,05/08/2010,63792,400.5,Priory Buildings (St Neots) Ltd,CR410900,Improvement Grants,Home Improvement Agency Fees,724
http://statistics.data.gov.uk/id/local-authority/12UE,Huntingdonshire District Council,05/08/2010,63793,676,Squires & Son Ltd,CR478185,Improvement Grants,Home Improvement Agency Fees,724
http://statistics.data.gov.uk/id/local-authority/12UE,Huntingdonshire District Council,26/08/2010,65315,327,Squires & Son Ltd,CR478185,Improvement Grants,Home Improvement Agency Fees,724
http://statistics.data.gov.uk/id/local-authority/12UE,Huntingdonshire District Council,05/08/2010,63968,"3,126.00",A & S Fenner,CR000092,Improvement Grants,Mandatory Grants,801
http://statistics.data.gov.uk/id/local-authority/12UE,Huntingdonshire District Council,05/08/2010,63969,"3,450.00",A & S Fenner,CR000092,Improvement Grants,Mandatory Grants,801
http://statistics.data.gov.uk/id/local-authority/12UE,Huntingdonshire District Council,05/08/2010,63970,"2,850.00",A & S Fenner,CR000092,Improvement Grants,Mandatory Grants,801
http://statistics.data.gov.uk/id/local-authority/12UE,Huntingdonshire District Council,12/08/2010,63971,"2,800.00",A & S Fenner,CR000092,Improvement Grants,Mandatory Grants,801
http://statistics.data.gov.uk/id/local-authority/12UE,Huntingdonshire District Council,05/08/2010,63972,"4,320.00",A & S Fenner,CR000092,Improvement Grants,Mandatory Grants,801
http://statistics.data.gov.uk/id/local-authority/12UE,Huntingdonshire District Council,05/08/2010,64053,628.63,A & S Fenner,CR000092,Improvement Grants,Mandatory Grants,801
http://statistics.data.gov.uk/id/local-authority/12UE,Huntingdonshire District Council,12/08/2010,64539,"2,850.00",A & S Fenner,CR000092,Improvement Grants,Mandatory Grants,801
http://statistics.data.gov.uk/id/local-authority/12UE,Huntingdonshire District Council,12/08/2010,64541,"2,604.00",A & S Fenner,CR000092,Improvement Grants,Mandatory Grants,801
http://statistics.data.gov.uk/id/local-authority/12UE,Huntingdonshire District Council,26/08/2010,65317,"3,332.00",A & S Fenner,CR000092,Improvement Grants,Mandatory Grants,801
http://statistics.data.gov.uk/id/local-authority/12UE,Huntingdonshire District Council,26/08/2010,65318,"3,240.00",A & S Fenner,CR000092,Improvement Grants,Mandatory Grants,801
http://statistics.data.gov.uk/id/local-authority/12UE,Huntingdonshire District Council,26/08/2010,65434,497,A & S Fenner,CR000092,Improvement Grants,Mandatory Grants,801
http://statistics.data.gov.uk/id/local-authority/12UE,Huntingdonshire District Council,26/08/2010,65435,"1,250.00",A & S Fenner,CR000092,Improvement Grants,Mandatory Grants,801
http://statistics.data.gov.uk/id/local-authority/12UE,Huntingdonshire District Council,26/08/2010,65436,"3,920.00",A & S Fenner,CR000092,Improvement Grants,Mandatory Grants,801
http://statistics.data.gov.uk/id/local-authority/12UE,Huntingdonshire District Council,05/08/2010,63478,"6,900.00",B P Morse,CR030128,Improvement Grants,Mandatory Grants,801
http://statistics.data.gov.uk/id/local-authority/12UE,Huntingdonshire District Council,05/08/2010,63967,"2,760.00",B P Morse,CR030128,Improvement Grants,Mandatory Grants,801
http://statistics.data.gov.uk/id/local-authority/12UE,Huntingdonshire District Council,26/08/2010,65316,"9,600.00",B P Morse,CR030128,Improvement Grants,Mandatory Grants,801
http://statistics.data.gov.uk/id/local-authority/12UE,Huntingdonshire District Council,26/08/2010,65313,"2,082.00",Bri Col Plumbing & Heating,CR033504,Improvement Grants,Mandatory Grants,801
http://statistics.data.gov.uk/id/local-authority/12UE,Huntingdonshire District Council,26/08/2010,65312,"2,872.50",Bsg Property Services Ltd,CR089905,Improvement Grants,Mandatory Grants,801
http://statistics.data.gov.uk/id/local-authority/12UE,Huntingdonshire District Council,26/08/2010,60552,"5,085.00",Hill-Rom Ltd,CR480680,Improvement Grants,Mandatory Grants,801
http://statistics.data.gov.uk/id/local-authority/12UE,Huntingdonshire District Council,26/08/2010,60245,"3,925.00",Mws General Builders,CR403808,Improvement Grants,Mandatory Grants,801
http://statistics.data.gov.uk/id/local-authority/12UE,Huntingdonshire District Council,05/08/2010,59436,"3,515.00",Priory Buildings (St Neots) Ltd,CR410900,Improvement Grants,Mandatory Grants,801
http://statistics.data.gov.uk/id/local-authority/12UE,Huntingdonshire District Council,05/08/2010,63792,"1,055.00",Priory Buildings (St Neots) Ltd,CR410900,Improvement Grants,Mandatory Grants,801
http://statistics.data.gov.uk/id/local-authority/12UE,Huntingdonshire District Council,05/08/2010,63793,150,Squires & Son Ltd,CR478185,Improvement Grants,Mandatory Grants,801
http://statistics.data.gov.uk/id/local-authority/12UE,Huntingdonshire District Council,26/08/2010,65315,"3,270.00",Squires & Son Ltd,CR478185,Improvement Grants,Mandatory Grants,801
http://statistics.data.gov.uk/id/local-authority/12UE,Huntingdonshire District Council,05/08/2010,63831,"4,791.00",Stannah Ltd Ref(20hu025),CR000759,Improvement Grants,Mandatory Grants,801
http://statistics.data.gov.uk/id/local-authority/12UE,Huntingdonshire District Council,19/08/2010,64932,"3,687.13",Swain Plastering & Building Contractors,CR477798,Improvement Grants,Mandatory Grants,801
http://statistics.data.gov.uk/id/local-authority/12UE,Huntingdonshire District Council,05/08/2010,63966,611,B P Morse,CR030128,Improvement Grants,Professional Fees,798
http://statistics.data.gov.uk/id/local-authority/12UE,Huntingdonshire District Council,12/08/2010,62843,500,Classic Windows And Conservatories,CR400575,Improvement Grants,Subcontractors,777
http://statistics.data.gov.uk/id/local-authority/12UE,Huntingdonshire District Council,26/08/2010,65050,"178,351.56",Graham,CR480029,Industrial Properties Capital,Building Construction,300
http://statistics.data.gov.uk/id/local-authority/12UE,Huntingdonshire District Council,19/08/2010,64552,144.03,Vodafone Limited,CR029120,Information Manager,Mobile Telephones & Radios,241
http://statistics.data.gov.uk/id/local-authority/12UE,Huntingdonshire District Council,05/08/2010,63781,"52,331.44",Jardine Lloyd Thompson,CR480345,Insurance Premium Holding,Building Insurance,414
http://statistics.data.gov.uk/id/local-authority/12UE,Huntingdonshire District Council,05/08/2010,63781,"5,230.31",Jardine Lloyd Thompson,CR480345,Insurance Premium Holding,Equipment Ins/All Risks,510
http://statistics.data.gov.uk/id/local-authority/12UE,Huntingdonshire District Council,05/08/2010,63786,348.44,Zurich Municipal,CR477397,Insurance Premium Holding,Ins (Service Related),260
http://statistics.data.gov.uk/id/local-authority/12UE,Huntingdonshire District Council,05/08/2010,63787,"12,741.51",Zurich Municipal,CR477397,Insurance Premium Holding,Ins (Service Related),260
http://statistics.data.gov.uk/id/local-authority/12UE,Huntingdonshire District Council,05/08/2010,63786,"20,272.55",Zurich Municipal,CR477397,Insurance Premium Holding,Insurance Employers,162
http://statistics.data.gov.uk/id/local-authority/12UE,Huntingdonshire District Council,05/08/2010,63786,"6,295.11",Zurich Municipal,CR477397,Insurance Premium Holding,Insurance Fidelity Guarantee,166
http://statistics.data.gov.uk/id/local-authority/12UE,Huntingdonshire District Council,05/08/2010,63786,"1,795.50",Zurich Municipal,CR477397,Insurance Premium Holding,Insurance Libel,167
http://statistics.data.gov.uk/id/local-authority/12UE,Huntingdonshire District Council,05/08/2010,63786,"7,905.02",Zurich Municipal,CR477397,Insurance Premium Holding,Insurance Officials Indemnity,168
http://statistics.data.gov.uk/id/local-authority/12UE,Huntingdonshire District Council,05/08/2010,63783,"4,882.49",Jardine Lloyd Thompson,CR480345,Insurance Premium Holding,Insurance Personal Accident,161
http://statistics.data.gov.uk/id/local-authority/12UE,Huntingdonshire District Council,05/08/2010,63786,"151,993.10",Zurich Municipal,CR477397,Insurance Premium Holding,Insurance Public Liability,160
http://statistics.data.gov.uk/id/local-authority/12UE,Huntingdonshire District Council,05/08/2010,63781,"108,976.88",Jardine Lloyd Thompson,CR480345,Insurance Premium Holding,Vehicle Insurance,610
http://statistics.data.gov.uk/id/local-authority/12UE,Huntingdonshire District Council,26/08/2010,63896,"3,525.00",Sterling International Brokers Ltd,CR478136,Interest Received,Consultants Other,711
http://statistics.data.gov.uk/id/local-authority/12UE,Huntingdonshire District Council,05/08/2010,62916,"3,064.17",Qubic Recruitment Solutions,CR416827,Kerbside Recycling,Hired Staff,100
http://statistics.data.gov.uk/id/local-authority/12UE,Huntingdonshire District Council,05/08/2010,63410,"1,983.64",Qubic Recruitment Solutions,CR416827,Kerbside Recycling,Hired Staff,100
http://statistics.data.gov.uk/id/local-authority/12UE,Huntingdonshire District Council,12/08/2010,63564,"3,891.98",Qubic Recruitment Solutions,CR416827,Kerbside Recycling,Hired Staff,100
http://statistics.data.gov.uk/id/local-authority/12UE,Huntingdonshire District Council,19/08/2010,64522,"2,306.17",Qubic Recruitment Solutions,CR416827,Kerbside Recycling,Hired Staff,100
http://statistics.data.gov.uk/id/local-authority/12UE,Huntingdonshire District Council,26/08/2010,64573,"2,220.16",Qubic Recruitment Solutions,CR416827,Kerbside Recycling,Hired Staff,100
http://statistics.data.gov.uk/id/local-authority/12UE,Huntingdonshire District Council,19/08/2010,64487,"1,603.03",A P Group,CR406397,Kerbside Recycling,Printing (External),220
http://statistics.data.gov.uk/id/local-authority/12UE,Huntingdonshire District Council,26/08/2010,64885,"1,250.78",Bandvulc Tyres Ltd,CR406810,Kerbside Recycling,Tyres,630
http://statistics.data.gov.uk/id/local-authority/12UE,Huntingdonshire District Council,05/08/2010,63786,"2,718.71",Zurich Municipal,CR477397,Land Charges,Ins (Service Related),260
http://statistics.data.gov.uk/id/local-authority/12UE,Huntingdonshire District Council,13/08/2010,64765,601.01,Sharpe Pritchard,CR400240,Legal Services Managment Units,Legal Fees And Consultancy,729
http://statistics.data.gov.uk/id/local-authority/12UE,Huntingdonshire District Council,19/08/2010,64552,151.28,Vodafone Limited,CR029120,Legal Services Managment Units,Mobile Telephones & Radios,241
http://statistics.data.gov.uk/id/local-authority/12UE,Huntingdonshire District Council,25/08/2010,65393,112.8,No 5 Chambers,CR411912,Legal Services Managment Units,Training - Professional,130
http://statistics.data.gov.uk/id/local-authority/12UE,Huntingdonshire District Council,05/08/2010,63785,469.07,Zurich Municipal,CR477397,Legal Services Managment Units,Vehicle Insurance,610
http://statistics.data.gov.uk/id/local-authority/12UE,Huntingdonshire District Council,26/08/2010,64290,"20,092.50",Cambridge Flat Roofing,CR479717,Leisure Centres Capital,Building Construction,300
http://statistics.data.gov.uk/id/local-authority/12UE,Huntingdonshire District Council,19/08/2010,64759,"4,171.25",Jba Construction & Management Services,CR416716,Leisure Centres Capital,Consultants Other,711
http://statistics.data.gov.uk/id/local-authority/12UE,Huntingdonshire District Council,05/08/2010,496888,"350,506.85",R G Carter Peterborough,CR401511,Leisure Centres Capital,Demolition,302
http://statistics.data.gov.uk/id/local-authority/12UE,Huntingdonshire District Council,26/08/2010,64964,"5,940.33",E Bowman & Sons Ltd,CR478853,Leisure Centres Capital,Gen Building Mtce - Planned,304
http://statistics.data.gov.uk/id/local-authority/12UE,Huntingdonshire District Council,05/08/2010,63119,"1,525.15",Easy Cooling Company Ltd,CR480767,Leisure Centres Capital,Gen Building Mtce - Planned,304
http://statistics.data.gov.uk/id/local-authority/12UE,Huntingdonshire District Council,12/08/2010,64451,"7,558.78",Easy Cooling Company Ltd,CR480767,Leisure Centres Capital,Plant & Equipment Maintenance,380
http://statistics.data.gov.uk/id/local-authority/12UE,Huntingdonshire District Council,12/08/2010,63961,"1,961.54",Premier Softward Solutions Ltd,CR480758,Leisure Centres Capital,Software,206
http://statistics.data.gov.uk/id/local-authority/12UE,Huntingdonshire District Council,05/08/2010,63750,763.75,Archant Herts And Cambs,CR403271,Leisure Centres Overall,Advertising/Promoting Services,255
http://statistics.data.gov.uk/id/local-authority/12UE,Huntingdonshire District Council,19/08/2010,64849,881.25,Primesight Ltd,CR409870,Leisure Centres Overall,Advertising/Promoting Services,255
http://statistics.data.gov.uk/id/local-authority/12UE,Huntingdonshire District Council,26/08/2010,65310,481.75,Yell Limited,CR416111,Leisure Centres Overall,Advertising/Promoting Services,255
http://statistics.data.gov.uk/id/local-authority/12UE,Huntingdonshire District Council,19/08/2010,64552,323.09,Vodafone Limited,CR029120,Leisure Development,Mobile Telephones & Radios,241
http://statistics.data.gov.uk/id/local-authority/12UE,Huntingdonshire District Council,26/08/2010,64257,591,Mo Motors,CR406493,Licences,Vehicle Inspection,618
http://statistics.data.gov.uk/id/local-authority/12UE,Huntingdonshire District Council,26/08/2010,64258,702,Mo Motors,CR406493,Licences,Vehicle Inspection,618
http://statistics.data.gov.uk/id/local-authority/12UE,Huntingdonshire District Council,12/08/2010,64259,516,Mo Motors,CR406493,Licences,Vehicle Inspection,618
http://statistics.data.gov.uk/id/local-authority/12UE,Huntingdonshire District Council,19/08/2010,64511,609.83,Lga Conference Account,CR409238,Member Allowances & Support,Conferences,137
http://statistics.data.gov.uk/id/local-authority/12UE,Huntingdonshire District Council,19/08/2010,64512,609.83,Lga Conference Account,CR409238,Member Allowances & Support,Conferences,137
http://statistics.data.gov.uk/id/local-authority/12UE,Huntingdonshire District Council,19/08/2010,64552,208.34,Vodafone Limited,CR029120,Member Allowances & Support,Mobile Telephones & Radios,241
http://statistics.data.gov.uk/id/local-authority/12UE,Huntingdonshire District Council,05/08/2010,62115,157.05,Virgin Media Business,CR033120,Member Allowances & Support,Telephone Charges,240
http://statistics.data.gov.uk/id/local-authority/12UE,Huntingdonshire District Council,19/08/2010,64552,70.39,Vodafone Limited,CR029120,Misc Countryside Sites,Mobile Telephones & Radios,241
http://statistics.data.gov.uk/id/local-authority/12UE,Huntingdonshire District Council,26/08/2010,497624,"6,000.00",St Barnabas Community Learning Centre,CR412072,Miscellaneous Grants,Grants (Paid Out),800
http://statistics.data.gov.uk/id/local-authority/12UE,Huntingdonshire District Council,12/08/2010,63473,"2,168.59",B T,CR415747,Network Services,Advertising - Communication,256
http://statistics.data.gov.uk/id/local-authority/12UE,Huntingdonshire District Council,05/08/2010,63784,"3,927.89",Jardine Lloyd Thompson,CR480345,Network Services,Equipment Ins/All Risks,510
http://statistics.data.gov.uk/id/local-authority/12UE,Huntingdonshire District Council,19/08/2010,63914,"2,730.70",Hp Care Pack Sales,CR478055,Network Services,Equipment Maintenance,511
http://statistics.data.gov.uk/id/local-authority/12UE,Huntingdonshire District Council,19/08/2010,64393,"1,014.38",Reed Employment Plc,CR416757,Network Services,Hired Staff,100
http://statistics.data.gov.uk/id/local-authority/12UE,Huntingdonshire District Council,12/08/2010,64394,"1,067.42",Reed Employment Plc,CR416757,Network Services,Hired Staff,100
http://statistics.data.gov.uk/id/local-authority/12UE,Huntingdonshire District Council,19/08/2010,64414,"1,021.02",Reed Employment Plc,CR416757,Network Services,Hired Staff,100
http://statistics.data.gov.uk/id/local-authority/12UE,Huntingdonshire District Council,26/08/2010,64405,"2,668.42",Telstar Europe Ltd,CR401740,Network Services,I T Line Rental,248
http://statistics.data.gov.uk/id/local-authority/12UE,Huntingdonshire District Council,05/08/2010,62989,"1,801.28",Virgin Media Business,CR033120,Network Services,I T Line Rental,248
http://statistics.data.gov.uk/id/local-authority/12UE,Huntingdonshire District Council,19/08/2010,64552,389.66,Vodafone Limited,CR029120,Network Services,Mobile Telephones & Radios,241
http://statistics.data.gov.uk/id/local-authority/12UE,Huntingdonshire District Council,19/08/2010,63932,741.66,Coolspirit Ltd,CR416326,Network Services,Network Hardware,205
http://statistics.data.gov.uk/id/local-authority/12UE,Huntingdonshire District Council,19/08/2010,63940,"40,843.20",Scc,CR409247,Network Services,Other I T Hardware,203
http://statistics.data.gov.uk/id/local-authority/12UE,Huntingdonshire District Council,27/08/2010,65676,700,Information Commissioner,CR404972,Network Services,Registration Fee,748
http://statistics.data.gov.uk/id/local-authority/12UE,Huntingdonshire District Council,05/08/2010,62528,"3,565.39",Phoenix Software Ltd,CR031918,Network Services,Software,206
http://statistics.data.gov.uk/id/local-authority/12UE,Huntingdonshire District Council,05/08/2010,62115,"5,391.68",Virgin Media Business,CR033120,Network Services,Telephone Charges,240
http://statistics.data.gov.uk/id/local-authority/12UE,Huntingdonshire District Council,05/08/2010,62845,804.9,Campbell Associates,CR407137,Nuisances,Equipment Maintenance,511
http://statistics.data.gov.uk/id/local-authority/12UE,Huntingdonshire District Council,05/08/2010,62486,"94,356.78",Carillion A M Developments,CR415549,Offices Capital,Building Construction,300
http://statistics.data.gov.uk/id/local-authority/12UE,Huntingdonshire District Council,26/08/2010,64068,"17,706.08",Catering Design Group Limited,CR479439,Offices Capital,Building Construction,300
http://statistics.data.gov.uk/id/local-authority/12UE,Huntingdonshire District Council,26/08/2010,64067,787.25,Playfords Ltd,CR479055,Offices Capital,Equipment Purchases,500
http://statistics.data.gov.uk/id/local-authority/12UE,Huntingdonshire District Council,26/08/2010,65309,155.1,Yell Limited,CR416111,One Leisure Huntingdon,Advertising/Promoting Services,255
http://statistics.data.gov.uk/id/local-authority/12UE,Huntingdonshire District Council,26/08/2010,65310,289.05,Yell Limited,CR416111,One Leisure Huntingdon,Advertising/Promoting Services,255
http://statistics.data.gov.uk/id/local-authority/12UE,Huntingdonshire District Council,19/08/2010,63493,236.47,Franklins Group,CR478928,One Leisure Huntingdon,Badges And Certificates,571
http://statistics.data.gov.uk/id/local-authority/12UE,Huntingdonshire District Council,26/08/2010,65259,291.43,G4s Cashservices Uk Ltd,CR407133,One Leisure Huntingdon,Cash Collection,702
http://statistics.data.gov.uk/id/local-authority/12UE,Huntingdonshire District Council,19/08/2010,64536,"1,889.89",Swalec,CR407130,One Leisure Huntingdon,Electricity,420
http://statistics.data.gov.uk/id/local-authority/12UE,Huntingdonshire District Council,12/08/2010,64540,974.43,Swalec,CR407130,One Leisure Huntingdon,Electricity,420
http://statistics.data.gov.uk/id/local-authority/12UE,Huntingdonshire District Council,19/08/2010,64542,"4,625.21",Swalec,CR407130,One Leisure Huntingdon,Electricity,420
http://statistics.data.gov.uk/id/local-authority/12UE,Huntingdonshire District Council,19/08/2010,64431,563.8,Mcintyre Leisure,CR404059,One Leisure Huntingdon,Equipment Maintenance,511
http://statistics.data.gov.uk/id/local-authority/12UE,Huntingdonshire District Council,05/08/2010,62461,"2,162.00",Csl Group,CR406172,One Leisure Huntingdon,Equipment Purchases,500
http://statistics.data.gov.uk/id/local-authority/12UE,Huntingdonshire District Council,05/08/2010,62633,766.38,E-On Energy,CR416430,One Leisure Huntingdon,Gas,421
http://statistics.data.gov.uk/id/local-authority/12UE,Huntingdonshire District Council,05/08/2010,62637,"2,565.97",E-On Energy,CR416430,One Leisure Huntingdon,Gas,421
http://statistics.data.gov.uk/id/local-authority/12UE,Huntingdonshire District Council,19/08/2010,64777,"1,911.55",E-On Energy,CR416430,One Leisure Huntingdon,Gas,421
http://statistics.data.gov.uk/id/local-authority/12UE,Huntingdonshire District Council,05/08/2010,62461,45.25,Csl Group,CR406172,One Leisure Huntingdon,Materials,550
http://statistics.data.gov.uk/id/local-authority/12UE,Huntingdonshire District Council,19/08/2010,64552,96.77,Vodafone Limited,CR029120,One Leisure Huntingdon,Mobile Telephones & Radios,241
http://statistics.data.gov.uk/id/local-authority/12UE,Huntingdonshire District Council,05/08/2010,63059,718.81,Air Systems A/C & Ref Ltd,CR416171,One Leisure Huntingdon,Plant & Equipment Maintenance,380
http://statistics.data.gov.uk/id/local-authority/12UE,Huntingdonshire District Council,12/08/2010,63058,521.17,Combined Energy Solutions,CR003063,One Leisure Huntingdon,Plant & Equipment Maintenance,380
http://statistics.data.gov.uk/id/local-authority/12UE,Huntingdonshire District Council,26/08/2010,64439,721.03,Combined Energy Solutions,CR003063,One Leisure Huntingdon,Plant & Equipment Maintenance,380
http://statistics.data.gov.uk/id/local-authority/12UE,Huntingdonshire District Council,12/08/2010,64403,"3,810.33",Anglian Water Payment Centre,CR409323,One Leisure Huntingdon,Sewerage,433
http://statistics.data.gov.uk/id/local-authority/12UE,Huntingdonshire District Council,12/08/2010,64412,"1,416.22",Ecocleen Services Limited,CR406985,One Leisure Huntingdon,Subcontractors,777
http://statistics.data.gov.uk/id/local-authority/12UE,Huntingdonshire District Council,05/08/2010,62115,148.3,Virgin Media Business,CR033120,One Leisure Huntingdon,Telephone Charges,240
http://statistics.data.gov.uk/id/local-authority/12UE,Huntingdonshire District Council,05/08/2010,62461,278.45,Csl Group,CR406172,One Leisure Huntingdon,Vending Materials,560
http://statistics.data.gov.uk/id/local-authority/12UE,Huntingdonshire District Council,12/08/2010,64486,"1,075.71",Glaxosmithkline,CR010424,One Leisure Huntingdon,Vending Materials,560
http://statistics.data.gov.uk/id/local-authority/12UE,Huntingdonshire District Council,12/08/2010,64403,"3,409.72",Anglian Water Payment Centre,CR409323,One Leisure Huntingdon,Water,432
http://statistics.data.gov.uk/id/local-authority/12UE,Huntingdonshire District Council,12/08/2010,64444,"2,110.74",Anglian Water Payment Centre,CR409323,One Leisure Huntingdon,Water,432
http://statistics.data.gov.uk/id/local-authority/12UE,Huntingdonshire District Council,26/08/2010,65309,155.1,Yell Limited,CR416111,One Leisure Ramsey,Advertising/Promoting Services,255
http://statistics.data.gov.uk/id/local-authority/12UE,Huntingdonshire District Council,26/08/2010,65310,192.7,Yell Limited,CR416111,One Leisure Ramsey,Advertising/Promoting Services,255
http://statistics.data.gov.uk/id/local-authority/12UE,Huntingdonshire District Council,19/08/2010,63493,236.47,Franklins Group,CR478928,One Leisure Ramsey,Badges And Certificates,571
http://statistics.data.gov.uk/id/local-authority/12UE,Huntingdonshire District Council,26/08/2010,65259,72.86,G4s Cashservices Uk Ltd,CR407133,One Leisure Ramsey,Cash Collection,702
http://statistics.data.gov.uk/id/local-authority/12UE,Huntingdonshire District Council,05/08/2010,62629,949.33,E-On Energy,CR416430,One Leisure Ramsey,Gas,421
http://statistics.data.gov.uk/id/local-authority/12UE,Huntingdonshire District Council,19/08/2010,64774,817.94,E-On Energy,CR416430,One Leisure Ramsey,Gas,421
http://statistics.data.gov.uk/id/local-authority/12UE,Huntingdonshire District Council,12/08/2010,63883,940.93,Ecocleen Services Limited,CR406985,One Leisure Ramsey,Gen Building Mtce - Planned,304
http://statistics.data.gov.uk/id/local-authority/12UE,Huntingdonshire District Council,26/08/2010,63876,"1,056.56",Forge Leisure Ltd,CR413317,One Leisure Ramsey,Gen Building Mtce - Responsive,303
http://statistics.data.gov.uk/id/local-authority/12UE,Huntingdonshire District Council,19/08/2010,64552,21.31,Vodafone Limited,CR029120,One Leisure Ramsey,Mobile Telephones & Radios,241
http://statistics.data.gov.uk/id/local-authority/12UE,Huntingdonshire District Council,05/08/2010,495855,563.85,Abbey College,CR478009,One Leisure Ramsey,Water,432
http://statistics.data.gov.uk/id/local-authority/12UE,Huntingdonshire District Council,26/08/2010,65309,155.12,Yell Limited,CR416111,One Leisure Sawtry,Advertising/Promoting Services,255
http://statistics.data.gov.uk/id/local-authority/12UE,Huntingdonshire District Council,26/08/2010,65310,192.7,Yell Limited,CR416111,One Leisure Sawtry,Advertising/Promoting Services,255
http://statistics.data.gov.uk/id/local-authority/12UE,Huntingdonshire District Council,19/08/2010,63493,236.47,Franklins Group,CR478928,One Leisure Sawtry,Badges And Certificates,571
http://statistics.data.gov.uk/id/local-authority/12UE,Huntingdonshire District Council,26/08/2010,65259,72.86,G4s Cashservices Uk Ltd,CR407133,One Leisure Sawtry,Cash Collection,702
http://statistics.data.gov.uk/id/local-authority/12UE,Huntingdonshire District Council,12/08/2010,63977,"4,538.25",Technogym Uk Ltd,CR033037,One Leisure Sawtry,Equipment Maintenance,511
http://statistics.data.gov.uk/id/local-authority/12UE,Huntingdonshire District Council,05/08/2010,62634,"1,591.53",E-On Energy,CR416430,One Leisure Sawtry,Gas,421
http://statistics.data.gov.uk/id/local-authority/12UE,Huntingdonshire District Council,19/08/2010,64771,"1,184.99",E-On Energy,CR416430,One Leisure Sawtry,Gas,421
http://statistics.data.gov.uk/id/local-authority/12UE,Huntingdonshire District Council,19/08/2010,64552,21.31,Vodafone Limited,CR029120,One Leisure Sawtry,Mobile Telephones & Radios,241
http://statistics.data.gov.uk/id/local-authority/12UE,Huntingdonshire District Council,26/08/2010,63878,822.5,Kubik Installations,CR404967,One Leisure Sawtry,Plant & Equipment Maintenance,380
http://statistics.data.gov.uk/id/local-authority/12UE,Huntingdonshire District Council,05/08/2010,63489,575.75,Smc Ltd T/A Chubb Emergency Repsonse,CR479782,One Leisure Sawtry,Security,450
http://statistics.data.gov.uk/id/local-authority/12UE,Huntingdonshire District Council,12/08/2010,63506,"1,082.11",Anglian Water,CR000071,One Leisure Sawtry,Water,432
http://statistics.data.gov.uk/id/local-authority/12UE,Huntingdonshire District Council,19/08/2010,63454,679.88,Uk Point Of Sale Group Ltd,CR478991,One Leisure St Ives,Advertising/Promoting Services,255
http://statistics.data.gov.uk/id/local-authority/12UE,Huntingdonshire District Council,26/08/2010,65309,155.1,Yell Limited,CR416111,One Leisure St Ives,Advertising/Promoting Services,255
http://statistics.data.gov.uk/id/local-authority/12UE,Huntingdonshire District Council,26/08/2010,65310,481.75,Yell Limited,CR416111,One Leisure St Ives,Advertising/Promoting Services,255
http://statistics.data.gov.uk/id/local-authority/12UE,Huntingdonshire District Council,19/08/2010,63493,236.47,Franklins Group,CR478928,One Leisure St Ives,Badges And Certificates,571
http://statistics.data.gov.uk/id/local-authority/12UE,Huntingdonshire District Council,19/08/2010,64392,342.96,Booker Cash And Carry,CR027611,One Leisure St Ives,Bar Provisions,558
http://statistics.data.gov.uk/id/local-authority/12UE,Huntingdonshire District Council,19/08/2010,64395,"2,686.75",Booker Cash And Carry,CR027611,One Leisure St Ives,Bar Provisions,558
http://statistics.data.gov.uk/id/local-authority/12UE,Huntingdonshire District Council,26/08/2010,65350,836.4,Booker Cash And Carry,CR027611,One Leisure St Ives,Bar Provisions,558
http://statistics.data.gov.uk/id/local-authority/12UE,Huntingdonshire District Council,19/08/2010,64406,535.1,Heineken Uk Ltd,CR032678,One Leisure St Ives,Bar Provisions,558
http://statistics.data.gov.uk/id/local-authority/12UE,Huntingdonshire District Council,26/08/2010,65344,"1,158.48",Heineken Uk Ltd,CR032678,One Leisure St Ives,Bar Provisions,558
http://statistics.data.gov.uk/id/local-authority/12UE,Huntingdonshire District Council,05/08/2010,63547,567.95,Pure Foods Systems Limited,CR416803,One Leisure St Ives,Bar Provisions,558
http://statistics.data.gov.uk/id/local-authority/12UE,Huntingdonshire District Council,26/08/2010,65338,757.26,Pure Foods Systems Limited,CR416803,One Leisure St Ives,Bar Provisions,558
http://statistics.data.gov.uk/id/local-authority/12UE,Huntingdonshire District Council,26/08/2010,65259,218.58,G4s Cashservices Uk Ltd,CR407133,One Leisure St Ives,Cash Collection,702
http://statistics.data.gov.uk/id/local-authority/12UE,Huntingdonshire District Council,19/08/2010,64390,125.89,Booker Cash And Carry,CR027611,One Leisure St Ives,Catering Materials,559
http://statistics.data.gov.uk/id/local-authority/12UE,Huntingdonshire District Council,19/08/2010,64392,28,Booker Cash And Carry,CR027611,One Leisure St Ives,Catering Materials,559
http://statistics.data.gov.uk/id/local-authority/12UE,Huntingdonshire District Council,19/08/2010,64395,76.15,Booker Cash And Carry,CR027611,One Leisure St Ives,Catering Materials,559
http://statistics.data.gov.uk/id/local-authority/12UE,Huntingdonshire District Council,26/08/2010,65350,368.42,Booker Cash And Carry,CR027611,One Leisure St Ives,Catering Materials,559
http://statistics.data.gov.uk/id/local-authority/12UE,Huntingdonshire District Council,12/08/2010,63068,831.77,Brenntag Uk Ltd,CR015017,One Leisure St Ives,Chemicals,551
http://statistics.data.gov.uk/id/local-authority/12UE,Huntingdonshire District Council,26/08/2010,65350,131.02,Booker Cash And Carry,CR027611,One Leisure St Ives,Cleaning Materials,443
http://statistics.data.gov.uk/id/local-authority/12UE,Huntingdonshire District Council,19/08/2010,64390,440.41,Booker Cash And Carry,CR027611,One Leisure St Ives,Confectionery,572
http://statistics.data.gov.uk/id/local-authority/12UE,Huntingdonshire District Council,19/08/2010,64392,201.35,Booker Cash And Carry,CR027611,One Leisure St Ives,Confectionery,572
http://statistics.data.gov.uk/id/local-authority/12UE,Huntingdonshire District Council,19/08/2010,64395,262.17,Booker Cash And Carry,CR027611,One Leisure St Ives,Confectionery,572
http://statistics.data.gov.uk/id/local-authority/12UE,Huntingdonshire District Council,26/08/2010,65350,"1,326.23",Booker Cash And Carry,CR027611,One Leisure St Ives,Confectionery,572
http://statistics.data.gov.uk/id/local-authority/12UE,Huntingdonshire District Council,12/08/2010,62832,117.5,Newgate (Newark) Limited,CR480024,One Leisure St Ives,Delivery Charges,232
http://statistics.data.gov.uk/id/local-authority/12UE,Huntingdonshire District Council,19/08/2010,64531,"1,404.90",Swalec,CR407130,One Leisure St Ives,Electricity,420
http://statistics.data.gov.uk/id/local-authority/12UE,Huntingdonshire District Council,19/08/2010,64532,"8,927.46",Swalec,CR407130,One Leisure St Ives,Electricity,420
http://statistics.data.gov.uk/id/local-authority/12UE,Huntingdonshire District Council,05/08/2010,64018,"2,132.63",Technogym Uk Ltd,CR033037,One Leisure St Ives,Equipment Purchases,500
http://statistics.data.gov.uk/id/local-authority/12UE,Huntingdonshire District Council,05/08/2010,62628,"2,402.16",E-On Energy,CR416430,One Leisure St Ives,Gas,421
http://statistics.data.gov.uk/id/local-authority/12UE,Huntingdonshire District Council,19/08/2010,64776,"1,419.96",E-On Energy,CR416430,One Leisure St Ives,Gas,421
http://statistics.data.gov.uk/id/local-authority/12UE,Huntingdonshire District Council,26/08/2010,64333,"10,265.43",John Henry & Sons,CR031967,One Leisure St Ives,Gen Building Mtce - Planned,304
http://statistics.data.gov.uk/id/local-authority/12UE,Huntingdonshire District Council,12/08/2010,62832,"1,551.00",Newgate (Newark) Limited,CR480024,One Leisure St Ives,Gen Building Mtce - Planned,304
http://statistics.data.gov.uk/id/local-authority/12UE,Huntingdonshire District Council,12/08/2010,63067,521.7,Lloyds Tsb Commercial Finance Ltd,CR410928,One Leisure St Ives,Hired Staff,100
http://statistics.data.gov.uk/id/local-authority/12UE,Huntingdonshire District Council,19/08/2010,63494,"1,391.20",Lloyds Tsb Commercial Finance Ltd,CR410928,One Leisure St Ives,Hired Staff,100
http://statistics.data.gov.uk/id/local-authority/12UE,Huntingdonshire District Council,19/08/2010,64395,298.11,Booker Cash And Carry,CR027611,One Leisure St Ives,Materials,550
http://statistics.data.gov.uk/id/local-authority/12UE,Huntingdonshire District Council,26/08/2010,65350,212.14,Booker Cash And Carry,CR027611,One Leisure St Ives,Materials,550
http://statistics.data.gov.uk/id/local-authority/12UE,Huntingdonshire District Council,05/08/2010,64020,628.63,P&Mm,CR480773,One Leisure St Ives,Materials,550
http://statistics.data.gov.uk/id/local-authority/12UE,Huntingdonshire District Council,19/08/2010,64552,135.1,Vodafone Limited,CR029120,One Leisure St Ives,Mobile Telephones & Radios,241
http://statistics.data.gov.uk/id/local-authority/12UE,Huntingdonshire District Council,05/08/2010,62645,654.3,Corporate Trends,CR415966,One Leisure St Ives,Protective Clothing & Uniforms,163
http://statistics.data.gov.uk/id/local-authority/12UE,Huntingdonshire District Council,05/08/2010,62918,631.81,Aquafun,CR480237,One Leisure St Ives,Sports Equipment,524
http://statistics.data.gov.uk/id/local-authority/12UE,Huntingdonshire District Council,05/08/2010,62115,131.58,Virgin Media Business,CR033120,One Leisure St Ives,Telephone Charges,240
http://statistics.data.gov.uk/id/local-authority/12UE,Huntingdonshire District Council,26/08/2010,65350,58.75,Booker Cash And Carry,CR027611,One Leisure St Ives,Vending Materials,560
http://statistics.data.gov.uk/id/local-authority/12UE,Huntingdonshire District Council,19/08/2010,62890,551.08,Biffa Waste Services Ltd,CR000376,One Leisure St Ives,Waste Disposal,763
http://statistics.data.gov.uk/id/local-authority/12UE,Huntingdonshire District Council,26/08/2010,65309,155.1,Yell Limited,CR416111,One Leisure St Neots,Advertising/Promoting Services,255
http://statistics.data.gov.uk/id/local-authority/12UE,Huntingdonshire District Council,26/08/2010,65310,289.05,Yell Limited,CR416111,One Leisure St Neots,Advertising/Promoting Services,255
http://statistics.data.gov.uk/id/local-authority/12UE,Huntingdonshire District Council,19/08/2010,63493,472.35,Franklins Group,CR478928,One Leisure St Neots,Badges And Certificates,571
http://statistics.data.gov.uk/id/local-authority/12UE,Huntingdonshire District Council,26/08/2010,65259,437.14,G4s Cashservices Uk Ltd,CR407133,One Leisure St Neots,Cash Collection,702
http://statistics.data.gov.uk/id/local-authority/12UE,Huntingdonshire District Council,05/08/2010,63399,507.6,Brenntag Uk Ltd,CR015017,One Leisure St Neots,Chemicals,551
http://statistics.data.gov.uk/id/local-authority/12UE,Huntingdonshire District Council,19/08/2010,64530,"5,698.42",Swalec,CR407130,One Leisure St Neots,Electricity,420
http://statistics.data.gov.uk/id/local-authority/12UE,Huntingdonshire District Council,05/08/2010,63076,783.23,Phs Group Ltd,CR032018,One Leisure St Neots,Equipment Hire,507
http://statistics.data.gov.uk/id/local-authority/12UE,Huntingdonshire District Council,12/08/2010,64030,559.3,Chubb Fire Ltd,CR478924,One Leisure St Neots,Equipment Maintenance,511
http://statistics.data.gov.uk/id/local-authority/12UE,Huntingdonshire District Council,26/08/2010,64911,"2,673.12",Brenntag Uk Ltd,CR015017,One Leisure St Neots,Equipment Purchases,500
http://statistics.data.gov.uk/id/local-authority/12UE,Huntingdonshire District Council,05/08/2010,63949,565.65,Universal Services,CR480753,One Leisure St Neots,Equipment Purchases,500
http://statistics.data.gov.uk/id/local-authority/12UE,Huntingdonshire District Council,05/08/2010,62635,654.67,E-On Energy,CR416430,One Leisure St Neots,Gas,421
http://statistics.data.gov.uk/id/local-authority/12UE,Huntingdonshire District Council,05/08/2010,62636,"1,886.63",E-On Energy,CR416430,One Leisure St Neots,Gas,421
http://statistics.data.gov.uk/id/local-authority/12UE,Huntingdonshire District Council,19/08/2010,64775,"1,505.28",E-On Energy,CR416430,One Leisure St Neots,Gas,421
http://statistics.data.gov.uk/id/local-authority/12UE,Huntingdonshire District Council,05/08/2010,63952,"1,695.53",Roger Wilson Electronics,CR028041,One Leisure St Neots,Gen Building Mtce - Planned,304
http://statistics.data.gov.uk/id/local-authority/12UE,Huntingdonshire District Council,19/08/2010,64552,204.7,Vodafone Limited,CR029120,One Leisure St Neots,Mobile Telephones & Radios,241
http://statistics.data.gov.uk/id/local-authority/12UE,Huntingdonshire District Council,05/08/2010,63489,"1,151.50",Smc Ltd T/A Chubb Emergency Repsonse,CR479782,One Leisure St Neots,Security,450
http://statistics.data.gov.uk/id/local-authority/12UE,Huntingdonshire District Council,05/08/2010,62115,91.59,Virgin Media Business,CR033120,One Leisure St Neots,Telephone Charges,240
http://statistics.data.gov.uk/id/local-authority/12UE,Huntingdonshire District Council,05/08/2010,63951,"1,354.10",Caterserve Snacks Ltd,CR478090,One Leisure St Neots,Vending Materials,560
http://statistics.data.gov.uk/id/local-authority/12UE,Huntingdonshire District Council,26/08/2010,64867,701.16,Caterserve Snacks Ltd,CR478090,One Leisure St Neots,Vending Materials,560
http://statistics.data.gov.uk/id/local-authority/12UE,Huntingdonshire District Council,26/08/2010,65355,663.33,Anglian Water,CR000071,One Leisure St Neots,Water,432
http://statistics.data.gov.uk/id/local-authority/12UE,Huntingdonshire District Council,19/08/2010,64552,465.69,Vodafone Limited,CR029120,Operations Mgt Units,Mobile Telephones & Radios,241
http://statistics.data.gov.uk/id/local-authority/12UE,Huntingdonshire District Council,19/08/2010,63921,130.66,Dell Computer Corporation,CR408320,Operations Mgt Units,Other I T Hardware,203
http://statistics.data.gov.uk/id/local-authority/12UE,Huntingdonshire District Council,05/08/2010,63785,938.16,Zurich Municipal,CR477397,Operations Mgt Units,Vehicle Insurance,610
http://statistics.data.gov.uk/id/local-authority/12UE,Huntingdonshire District Council,26/08/2010,63849,"16,291.22",John Henry & Sons,CR031967,Parks & Open Spaces,Materials,550
http://statistics.data.gov.uk/id/local-authority/12UE,Huntingdonshire District Council,19/08/2010,64321,987,Hagsplay Ltd,CR007211,Parks & Open Spaces,Playground Equipment,360
http://statistics.data.gov.uk/id/local-authority/12UE,Huntingdonshire District Council,12/08/2010,62878,"2,391.13",Glomac Engineering Ltd,CR403119,Parks & Open Spaces,Sitework,359
http://statistics.data.gov.uk/id/local-authority/12UE,Huntingdonshire District Council,26/08/2010,63899,"1,824.74",John Henry & Sons,CR031967,Parks & Open Spaces,Sitework,359
http://statistics.data.gov.uk/id/local-authority/12UE,Huntingdonshire District Council,19/08/2010,63911,"6,597.63",Lattenbury Services,CR406847,Parks & Open Spaces,Subcontractors,777
http://statistics.data.gov.uk/id/local-authority/12UE,Huntingdonshire District Council,26/08/2010,64331,"3,231.25",George James & Sons,CR406652,Parks Equipment Capital,Equipment Maintenance,511
http://statistics.data.gov.uk/id/local-authority/12UE,Huntingdonshire District Council,26/08/2010,64322,"1,143.86",Wicksteed Leisure Ltd,CR028997,Parks Equipment Capital,Playground Equipment,360
http://statistics.data.gov.uk/id/local-authority/12UE,Huntingdonshire District Council,19/08/2010,64323,"5,024.90",Wicksteed Leisure Ltd,CR028997,Parks Equipment Capital,Playground Equipment,360
http://statistics.data.gov.uk/id/local-authority/12UE,Huntingdonshire District Council,26/08/2010,63811,"5,810.15",John Henry & Sons,CR031967,Parks Equipment Capital,Sitework,359
http://statistics.data.gov.uk/id/local-authority/12UE,Huntingdonshire District Council,12/08/2010,63803,620.4,Ecocleen Services Limited,CR406985,Pathfinder House Site,Building Cleaning Internal,440
http://statistics.data.gov.uk/id/local-authority/12UE,Huntingdonshire District Council,19/08/2010,64538,"11,478.17",Swalec,CR407130,Pathfinder House Site,Electricity,420
http://statistics.data.gov.uk/id/local-authority/12UE,Huntingdonshire District Council,12/08/2010,63804,"2,440.15",Ecocleen Services Limited,CR406985,Pathfinder House Site,Gen Building Mtce - Planned,304
http://statistics.data.gov.uk/id/local-authority/12UE,Huntingdonshire District Council,05/08/2010,62639,"1,436.59",Kershaw Mechanical Services Ltd,CR480268,Pathfinder House Site,Gen Building Mtce - Planned,304
http://statistics.data.gov.uk/id/local-authority/12UE,Huntingdonshire District Council,05/08/2010,62640,"2,613.05",Kershaw Mechanical Services Ltd,CR480268,Pathfinder House Site,Gen Building Mtce - Planned,304
http://statistics.data.gov.uk/id/local-authority/12UE,Huntingdonshire District Council,19/08/2010,64584,"3,602.01",Kershaw Mechanical Services Ltd,CR480268,Pathfinder House Site,Gen Building Mtce - Planned,304
http://statistics.data.gov.uk/id/local-authority/12UE,Huntingdonshire District Council,05/08/2010,62540,712.05,Kone Lifts Ltd,CR000483,Pathfinder House Site,Gen Building Mtce - Planned,304
http://statistics.data.gov.uk/id/local-authority/12UE,Huntingdonshire District Council,26/08/2010,64751,"3,586.69",Hygiene Solutions,CR477443,Pathfinder House Site,Gen Building Mtce - Responsive,303
http://statistics.data.gov.uk/id/local-authority/12UE,Huntingdonshire District Council,26/08/2010,65311,630.98,Officestor,CR479100,Pathfinder House Site,Gen Building Mtce - Responsive,303
http://statistics.data.gov.uk/id/local-authority/12UE,Huntingdonshire District Council,26/08/2010,64069,"3,530.88",Playfords Ltd,CR479055,Pathfinder House Site,Gen Building Mtce - Responsive,303
http://statistics.data.gov.uk/id/local-authority/12UE,Huntingdonshire District Council,19/08/2010,64552,28.61,Vodafone Limited,CR029120,Pathfinder House Site,Mobile Telephones & Radios,241
http://statistics.data.gov.uk/id/local-authority/12UE,Huntingdonshire District Council,19/08/2010,63851,"1,144.34",Anglian Water,CR000071,Pathfinder House Site,Sewerage,433
http://statistics.data.gov.uk/id/local-authority/12UE,Huntingdonshire District Council,19/08/2010,63851,"1,002.27",Anglian Water,CR000071,Pathfinder House Site,Water,432
http://statistics.data.gov.uk/id/local-authority/12UE,Huntingdonshire District Council,12/08/2010,63348,"1,061.04",Saltream  Ltd,CR411219,Pavillions,Gen Building Mtce - Responsive,303
http://statistics.data.gov.uk/id/local-authority/12UE,Huntingdonshire District Council,19/08/2010,64954,768.45,Hire Or Buy Group Ltd,CR000707,Paxton Pits,Equipment Purchases,500
http://statistics.data.gov.uk/id/local-authority/12UE,Huntingdonshire District Council,19/08/2010,64552,29.08,Vodafone Limited,CR029120,Paxton Pits,Mobile Telephones & Radios,241
http://statistics.data.gov.uk/id/local-authority/12UE,Huntingdonshire District Council,19/08/2010,64567,201.7,Shell Uk Ltd,CR028192,Paxton Pits,Petrol,614
http://statistics.data.gov.uk/id/local-authority/12UE,Huntingdonshire District Council,05/08/2010,62517,856,Coral Design Management,CR029621,Paxton Pits,Promotions And Exhibitions,743
http://statistics.data.gov.uk/id/local-authority/12UE,Huntingdonshire District Council,05/08/2010,63508,499.38,Dal-Rod Uk Ltd,CR002782,Paxton Pits,Waste Disposal,763
http://statistics.data.gov.uk/id/local-authority/12UE,Huntingdonshire District Council,19/08/2010,64396,587.33,Northgate Arinso,CR028689,Payroll,Software,206
http://statistics.data.gov.uk/id/local-authority/12UE,Huntingdonshire District Council,19/08/2010,64552,560.1,Vodafone Limited,CR029120,People Performance&Partner Mu,Mobile Telephones & Radios,241
http://statistics.data.gov.uk/id/local-authority/12UE,Huntingdonshire District Council,04/08/2010,496191,950,Chartered Institute Of Public Relations,CR478083,People Performance&Partner Mu,Training - Professional,130
http://statistics.data.gov.uk/id/local-authority/12UE,Huntingdonshire District Council,25/08/2010,65393,451.2,No 5 Chambers,CR411912,People Performance&Partner Mu,Training - Professional,130
http://statistics.data.gov.uk/id/local-authority/12UE,Huntingdonshire District Council,05/08/2010,63785,469.07,Zurich Municipal,CR477397,People Performance&Partner Mu,Vehicle Insurance,610
http://statistics.data.gov.uk/id/local-authority/12UE,Huntingdonshire District Council,12/08/2010,64325,76.93,Euramka Promotions Ltd,CR001864,Pest Control,Diesel,615
http://statistics.data.gov.uk/id/local-authority/12UE,Huntingdonshire District Council,19/08/2010,64552,49.06,Vodafone Limited,CR029120,Pest Control,Mobile Telephones & Radios,241
http://statistics.data.gov.uk/id/local-authority/12UE,Huntingdonshire District Council,05/08/2010,62546,782.79,The Oyster Partnership,CR480450,Planning M U'S,Consultants Other,711
http://statistics.data.gov.uk/id/local-authority/12UE,Huntingdonshire District Council,19/08/2010,63504,800.95,The Oyster Partnership,CR480450,Planning M U'S,Consultants Other,711
http://statistics.data.gov.uk/id/local-authority/12UE,Huntingdonshire District Council,26/08/2010,63989,559.98,The Oyster Partnership,CR480450,Planning M U'S,Consultants Other,711
http://statistics.data.gov.uk/id/local-authority/12UE,Huntingdonshire District Council,26/08/2010,65417,616.88,The Oyster Partnership,CR480450,Planning M U'S,Consultants Other,711
http://statistics.data.gov.uk/id/local-authority/12UE,Huntingdonshire District Council,26/08/2010,65204,"1,318.35",Bsi,CR40082,Planning M U'S,Corporate Subscriptions,754
http://statistics.data.gov.uk/id/local-authority/12UE,Huntingdonshire District Council,19/08/2010,64552,"1,039.54",Vodafone Limited,CR029120,Planning M U'S,Mobile Telephones & Radios,241
http://statistics.data.gov.uk/id/local-authority/12UE,Huntingdonshire District Council,19/08/2010,63498,940,Association Of Building Engineers,CR413450,Planning M U'S,Training - Professional,130
http://statistics.data.gov.uk/id/local-authority/12UE,Huntingdonshire District Council,05/08/2010,63785,"2,345.35",Zurich Municipal,CR477397,Planning M U'S,Vehicle Insurance,610
http://statistics.data.gov.uk/id/local-authority/12UE,Huntingdonshire District Council,26/08/2010,63780,"20,000.00",The Wildlife Trust,CR401987,Project Contributions,Consultants Other,711
http://statistics.data.gov.uk/id/local-authority/12UE,Huntingdonshire District Council,05/08/2010,63781,"35,772.37",Jardine Lloyd Thompson,CR480345,Property Development And Mgt,Ins (Service Related),260
http://statistics.data.gov.uk/id/local-authority/12UE,Huntingdonshire District Council,05/08/2010,62846,"4,970.27",Information Publications Ltd,CR415915,Public Accountability,Advertising/Promoting Services,255
http://statistics.data.gov.uk/id/local-authority/12UE,Huntingdonshire District Council,12/08/2010,63358,"4,813.24",Royal Mail,CR027083,Public Accountability,Postage,231
http://statistics.data.gov.uk/id/local-authority/12UE,Huntingdonshire District Council,26/08/2010,65022,17.95,Transcriptions Direct Ltd,CR417157,Public Accountability,Postage,231
http://statistics.data.gov.uk/id/local-authority/12UE,Huntingdonshire District Council,05/08/2010,62607,"7,435.08",Warners Midlands Plc,CR416025,Public Accountability,Printing (External),220
http://statistics.data.gov.uk/id/local-authority/12UE,Huntingdonshire District Council,26/08/2010,65022,602.48,Transcriptions Direct Ltd,CR417157,Public Accountability,Translation Services,766
http://statistics.data.gov.uk/id/local-authority/12UE,Huntingdonshire District Council,26/08/2010,63766,763.75,Beebys Limited,CR415822,Public Conveniences,Gen Building Mtce - Planned,304
http://statistics.data.gov.uk/id/local-authority/12UE,Huntingdonshire District Council,26/08/2010,63767,763.75,Beebys Limited,CR415822,Public Conveniences,Gen Building Mtce - Planned,304
http://statistics.data.gov.uk/id/local-authority/12UE,Huntingdonshire District Council,26/08/2010,63766,"1,639.52",Beebys Limited,CR415822,Public Conveniences,Gen Building Mtce - Responsive,303
http://statistics.data.gov.uk/id/local-authority/12UE,Huntingdonshire District Council,12/08/2010,62818,"1,057.50",Magnet Solutions,CR416903,Revenue Services Mus,Enquiries,723
http://statistics.data.gov.uk/id/local-authority/12UE,Huntingdonshire District Council,19/08/2010,64552,"6,909.00",Vodafone Limited,CR029120,Revenue Services Mus,I T Line Rental,248
http://statistics.data.gov.uk/id/local-authority/12UE,Huntingdonshire District Council,19/08/2010,63298,827.53,Sarfo Solicitors,CR415973,Revenue Services Mus,Legal Fees And Consultancy,729
http://statistics.data.gov.uk/id/local-authority/12UE,Huntingdonshire District Council,19/08/2010,64552,530.01,Vodafone Limited,CR029120,Revenue Services Mus,Mobile Telephones & Radios,241
http://statistics.data.gov.uk/id/local-authority/12UE,Huntingdonshire District Council,19/08/2010,63362,802.46,Royal Mail,CR027083,Revenue Services Mus,Postage,231
http://statistics.data.gov.uk/id/local-authority/12UE,Huntingdonshire District Council,05/08/2010,63356,710.47,T N T Post Midlands Ltd,CR479965,Revenue Services Mus,Postage,231
http://statistics.data.gov.uk/id/local-authority/12UE,Huntingdonshire District Council,05/08/2010,63357,334.78,T N T Post Midlands Ltd,CR479965,Revenue Services Mus,Postage,231
http://statistics.data.gov.uk/id/local-authority/12UE,Huntingdonshire District Council,12/08/2010,63361,529.83,T N T Post Midlands Ltd,CR479965,Revenue Services Mus,Postage,231
http://statistics.data.gov.uk/id/local-authority/12UE,Huntingdonshire District Council,26/08/2010,64267,318.05,T N T Post Midlands Ltd,CR479965,Revenue Services Mus,Postage,231
http://statistics.data.gov.uk/id/local-authority/12UE,Huntingdonshire District Council,19/08/2010,64271,"1,659.24",T N T Post Midlands Ltd,CR479965,Revenue Services Mus,Postage,231
http://statistics.data.gov.uk/id/local-authority/12UE,Huntingdonshire District Council,26/08/2010,64563,"1,480.52",Irrv Services Limited,CR008937,Revenue Services Mus,Training - Professional,130
http://statistics.data.gov.uk/id/local-authority/12UE,Huntingdonshire District Council,05/08/2010,63785,469.07,Zurich Municipal,CR477397,Revenue Services Mus,Vehicle Insurance,610
http://statistics.data.gov.uk/id/local-authority/12UE,Huntingdonshire District Council,26/08/2010,64833,"2,878.75",4c Strategies,CR480672,Software Capital,Consultants Other,711
http://statistics.data.gov.uk/id/local-authority/12UE,Huntingdonshire District Council,26/08/2010,497434,"3,266.25",Edrm Systems Ltd,CR416278,Software Capital,Consultants Other,711
http://statistics.data.gov.uk/id/local-authority/12UE,Huntingdonshire District Council,05/08/2010,63122,"3,760.00",Freedom Communications Uk Ltd,CR478774,Software Capital,Consultants Other,711
http://statistics.data.gov.uk/id/local-authority/12UE,Huntingdonshire District Council,19/08/2010,64552,219.29,Vodafone Limited,CR029120,Software Capital,Mobile Telephones & Radios,241
http://statistics.data.gov.uk/id/local-authority/12UE,Huntingdonshire District Council,19/08/2010,63921,166.56,Dell Computer Corporation,CR408320,Software Capital,Other I T Hardware,203
http://statistics.data.gov.uk/id/local-authority/12UE,Huntingdonshire District Council,12/08/2010,63937,"1,889.05",Scc,CR409247,Software Capital,Other I T Hardware,203
http://statistics.data.gov.uk/id/local-authority/12UE,Huntingdonshire District Council,12/08/2010,63936,532.98,Dell Computer Corporation,CR408320,Software Capital,P C'S And Accessories,201
http://statistics.data.gov.uk/id/local-authority/12UE,Huntingdonshire District Council,26/08/2010,65451,"14,570.00",Idox Information Services Ltd,CR403657,Software Capital,Software,206
http://statistics.data.gov.uk/id/local-authority/12UE,Huntingdonshire District Council,19/08/2010,64064,"8,407.13",Northgate Hr Limited,CR416464,Software Capital,Software,206
http://statistics.data.gov.uk/id/local-authority/12UE,Huntingdonshire District Council,19/08/2010,63372,"1,404.13",Dal-Rod (Camridgeshire),CR413675,Street Cleaning,Drains & Sewers,321
http://statistics.data.gov.uk/id/local-authority/12UE,Huntingdonshire District Council,05/08/2010,62879,"1,780.13",Dal-Rod Uk Ltd,CR002782,Street Cleaning,Drains & Sewers,321
http://statistics.data.gov.uk/id/local-authority/12UE,Huntingdonshire District Council,05/08/2010,62914,"2,461.57",Qubic Recruitment Solutions,CR416827,Street Cleaning,Hired Staff,100
http://statistics.data.gov.uk/id/local-authority/12UE,Huntingdonshire District Council,05/08/2010,63412,"2,343.54",Qubic Recruitment Solutions,CR416827,Street Cleaning,Hired Staff,100
http://statistics.data.gov.uk/id/local-authority/12UE,Huntingdonshire District Council,12/08/2010,63567,"2,026.37",Qubic Recruitment Solutions,CR416827,Street Cleaning,Hired Staff,100
http://statistics.data.gov.uk/id/local-authority/12UE,Huntingdonshire District Council,19/08/2010,64518,"2,386.78",Qubic Recruitment Solutions,CR416827,Street Cleaning,Hired Staff,100
http://statistics.data.gov.uk/id/local-authority/12UE,Huntingdonshire District Council,26/08/2010,64570,"2,225.52",Qubic Recruitment Solutions,CR416827,Street Cleaning,Hired Staff,100
http://statistics.data.gov.uk/id/local-authority/12UE,Huntingdonshire District Council,26/08/2010,64885,233.16,Bandvulc Tyres Ltd,CR406810,Street Cleaning,Tyres,630
http://statistics.data.gov.uk/id/local-authority/12UE,Huntingdonshire District Council,05/08/2010,63906,582.8,D & H Sign & Display Services,CR030353,Street Cleaning,Vehicle Logo,627
http://statistics.data.gov.uk/id/local-authority/12UE,Huntingdonshire District Council,26/08/2010,64504,582.8,D & H Sign & Display Services,CR030353,Street Cleaning,Vehicle Logo,627
http://statistics.data.gov.uk/id/local-authority/12UE,Huntingdonshire District Council,12/08/2010,63563,758,Austins Plant Services Ltd,CR477914,Street Cleaning,Vehicle Maintenance,619
http://statistics.data.gov.uk/id/local-authority/12UE,Huntingdonshire District Council,12/08/2010,63472,860.59,Johnston Engineering Ltd,CR029831,Street Cleaning,Vehicle Maintenance,619
http://statistics.data.gov.uk/id/local-authority/12UE,Huntingdonshire District Council,19/08/2010,63893,"1,017.08",Johnston Engineering Ltd,CR029831,Street Cleaning,Vehicle Maintenance,619
http://statistics.data.gov.uk/id/local-authority/12UE,Huntingdonshire District Council,19/08/2010,63895,564.47,Johnston Engineering Ltd,CR029831,Street Cleaning,Vehicle Maintenance,619
http://statistics.data.gov.uk/id/local-authority/12UE,Huntingdonshire District Council,19/08/2010,64552,7.02,Vodafone Limited,CR029120,Street Naming,Mobile Telephones & Radios,241
http://statistics.data.gov.uk/id/local-authority/12UE,Huntingdonshire District Council,19/08/2010,64552,66.78,Vodafone Limited,CR029120,Town Centre Management,Mobile Telephones & Radios,241
http://statistics.data.gov.uk/id/local-authority/12UE,Huntingdonshire District Council,26/08/2010,64329,"1,057.51",Universal Uk Ltd,CR406932,Trade Waste,Materials,550
http://statistics.data.gov.uk/id/local-authority/12UE,Huntingdonshire District Council,19/08/2010,64324,"2,073.19",Cambridgeshire County Council,CR006678,Trade Waste,Waste Disposal,763
http://statistics.data.gov.uk/id/local-authority/12UE,Huntingdonshire District Council,12/08/2010,63062,"59,081.06",Trueform Engineering Ltd,CR411664,Transportation Capital,Equipment Purchases,500
http://statistics.data.gov.uk/id/local-authority/12UE,Huntingdonshire District Council,26/08/2010,63743,"9,068.97",Mhb Services,CR417269,Transportation Capital,Sitework,359
http://statistics.data.gov.uk/id/local-authority/12UE,Huntingdonshire District Council,19/08/2010,64552,10.01,Vodafone Limited,CR029120,Transportation Mgt,Mobile Telephones & Radios,241
http://statistics.data.gov.uk/id/local-authority/12UE,Huntingdonshire District Council,05/08/2010,63842,"35,822.44",Sandicliffe Motor Group,CR480713,Vehicles & Plant Capital,Vehicles Purchased,600
http://statistics.data.gov.uk/id/local-authority/12UE,Huntingdonshire District Council,26/08/2010,64568,"35,822.44",Sandicliffe Motor Group,CR480713,Vehicles & Plant Capital,Vehicles Purchased,600
http://statistics.data.gov.uk/id/local-authority/12UE,Huntingdonshire District Council,26/08/2010,64062,"4,899.75",Lattenbury Services,CR406847,Watercourses,Drains & Sewers,321
http://statistics.data.gov.uk/id/local-authority/12UE,Huntingdonshire District Council,26/08/2010,64063,"1,938.75",Lattenbury Services,CR406847,Watercourses,Drains & Sewers,321
